Workbook

Sheet THEMA UND INHALT
I2: ABBILDUNG A) STATISCHE SONNEN – UND UHRZEIT | P2: ABBILDUNG B) DYNAMISCHE SONNEN – UND UHRZEIT

Sheet THEMA + INHALT
B1: 16:39:02
I2: ABBILDUNG A) STATISCHE SONNEN – UND UHRZEIT | P2: ABBILDUNG B) DYNAMISCHE SONNEN – UND UHRZEIT
B8: 2023-04-28

Sheet EINGABEN UND AUSDRUCK
B1: 13:21:12
B3: BESTIMMUNG DER SOLAREN ORTSZEIT AM STANDORT UND AM ZIELORT (WOZ UND MOZ)
B5: DATUM AM STANDORT (Anzeige rechts eintragen - exkl. Jahrzahl) | D5: 7 | E5: 1 | F5: ='BERECHNUNG 2'!$Y$9 -> 23 | G5: =TODAY() -> 2023-04-28
D6: (1 - 31) | E6: (1 - 12)
B7: UHRZEIT AM STANDORT MINUS ZEITVERSCHIEBUNG ZU UTC
B8: 2021-12-24 | D8: 10 | E8: 15 | F8: 0 | G8: =NOW() -> 45044.69692
B9: (berichtigt auf UTC! CH/MEZ: Sommer - 2; Winter - 1) | D9: (0 - 23) | E9: (0 -59) | F9: (0 - 59)
B11: LÄNGENGRAD AM STANDORT *Rechtsklick auf Bild od. Marke | D11: 8.5809591 | E11: KLOTEN STADTHAUS | G11: *Längengrad?
D12: (± X,…....) | E12: (Name des Standorts, fakultativ)
B14: LÄNGENGRAD AM ZIELORT *Rechtsklick auf Bild od. Marke | D14: -73.9857635 | E14: NEW YORK EMP.ST. BUILDING | G14: *Längengrad?
D15: (± X,…....) | E15: (Name des Zielorts, fakultativ)
B18: =$E$11 -> KLOTEN STADTHAUS | D18: =$E$14 -> NEW YORK EMP.ST. BUILDING
G25: Uhren mit WOZ
D30: =(E33/60)+(F33/3600) -> 0.4194444444 | E30: =(F33/60) -> 0.1666666667
D31: =IF(D33>=12,(D33+D30)-12,(D33+D30)) -> 5.419444444 | E31: =$E$33+E30 -> 25.16666667 | F31: =$F$33 -> 10 | G31: oekopriority.com | I31: Differenzbildung:
D32: =(D31-12) -> -6.580555556 | E32: =(60-E31) -> 34.83333333 | F32: =(60-F31) -> 50
B33: WOZ | C33: =$E$14 -> NEW YORK EMP.ST. BUILDING | D33: =IF('BERECHNUNG 2'!$Y$9=$F$5,IF($E$5='BERECHNUNG 2'!$AD$16,'BERECHNUNG 2'!$AA16,IF($E$5='BERECHNUNG 2'!$AD$20,'BERECHNUNG 2'!$AA20,IF($E$5='BERECHNUNG 2'!$AD$24,'BERECHNUNG 2'!$AA24,IF($E$5='BERECHNUNG 2'!$AD$28,'BERECHNUNG 2'!$AA28,IF($E$5='BERECHNUNG 2'!$AD$32,'BERECHNUNG 2'!$AA32,IF($E$5='BERECHNUNG 2'!$AD$36,'BERECHNUNG 2'!$AA36,IF($E$5='BERECHNUNG 2'!$AD$40,'BERECHNUNG 2'!$AA40,IF($E$5='BERECHNUNG 2'!$AD$44,'BERECHNUNG 2'!$AA44,IF($E$5='BERECHNUNG 2'!$AD$48,'BERECHNUNG 2'!$AA48,IF($E$5='BERECHNUNG 2'!$AD$52,'BERECHNUNG 2'!$AA52,IF($E$5='BERECHNUNG 2'!$AD$56,'BERECHNUNG 2'!$AA56,IF($E$5='BERECHNUNG 2'!$AD$60,'BERECHNUNG 2'!$AA60,"")))))))))))),"AUSSTEHEND") -> 5 | E33: =IF('BERECHNUNG 2'!$Y$9=$F$5,IF($E$5='BERECHNUNG 2'!$AD$16,'BERECHNUNG 2'!$AB16,IF($E$5='BERECHNUNG 2'!$AD$20,'BERECHNUNG 2'!$AB20,IF($E$5='BERECHNUNG 2'!$AD$24,'BERECHNUNG 2'!$AB24,IF($E$5='BERECHNUNG 2'!$AD$28,'BERECHNUNG 2'!$AB28,IF($E$5='BERECHNUNG 2'!$AD$32,'BERECHNUNG 2'!$AB32,IF($E$5='BERECHNUNG 2'!$AD$36,'BERECHNUNG 2'!$AB36,IF($E$5='BERECHNUNG 2'!$AD$40,'BERECHNUNG 2'!$AB40,IF($E$5='BERECHNUNG 2'!$AD$44,'BERECHNUNG 2'!$AB44,IF($E$5='BERECHNUNG 2'!$AD$48,'BERECHNUNG 2'!$AB48,IF($E$5='BERECHNUNG 2'!$AD$52,'BERECHNUNG 2'!$AB52,IF($E$5='BERECHNUNG 2'!$AD$56,'BERECHNUNG 2'!$AB56,IF($E$5='BERECHNUNG 2'!$AD$60,'BERECHNUNG 2'!$AB60,"")))))))))))),"AUSSTEHEND") -> 25 | F33: =IF('BERECHNUNG 2'!$Y$9=$F$5,IF($E$5='BERECHNUNG 2'!$AD$16,'BERECHNUNG 2'!$AC16,IF($E$5='BERECHNUNG 2'!$AD$20,'BERECHNUNG 2'!$AC20,IF($E$5='BERECHNUNG 2'!$AD$24,'BERECHNUNG 2'!$AC24,IF($E$5='BERECHNUNG 2'!$AD$28,'BERECHNUNG 2'!$AC28,IF($E$5='BERECHNUNG 2'!$AD$32,'BERECHNUNG 2'!$AC32,IF($E$5='BERECHNUNG 2'!$AD$36,'BERECHNUNG 2'!$AC36,IF($E$5='BERECHNUNG 2'!$AD$40,'BERECHNUNG 2'!$AC40,IF($E$5='BERECHNUNG 2'!$AD$44,'BERECHNUNG 2'!$AC44,IF($E$5='BERECHNUNG 2'!$AD$48,'BERECHNUNG 2'!$AC48,IF($E$5='BERECHNUNG 2'!$AD$52,'BERECHNUNG 2'!$AC52,IF($E$5='BERECHNUNG 2'!$AD$56,'BERECHNUNG 2'!$AC56,IF($E$5='BERECHNUNG 2'!$AD$60,'BERECHNUNG 2'!$AC60,"")))))))))))),"AUSSTEHEND") -> 10 | G33: ZIELORT | I33: Summensec. WOZ Standort | J33: =(D41*3600+E41*60+F41) -> 39326
C34: (Ein allf. Vermerk "AUSSTEHEND" bedeutet, dass die Daten zur Zeitgleichung noch nicht aktualisiert sind)
I35: Summenbsec. WOZ Zielort | J35: =(D33*3600+E33*60+F33) -> 19510
B36: MOZ | C36: =$E$14 -> NEW YORK EMP.ST. BUILDING | D36: ='BERECHNUNG 2'!V13 -> 5 | E36: ='BERECHNUNG 2'!W13 -> 19 | F36: ='BERECHNUNG 2'!X13 -> 3 | G36: ZIELORT
D37: =IF(D36<0,"Minus = Vortag","") ->  | I37: Differe nzsec absolut | J37: =ABS(J33-J35) -> 19816
D38: =(E41/60+F41/3600) -> 0.9238888889 | E38: =(F41/60) -> 0.4333333333
D39: =IF(D41>=12,(D41+D38)-12,(D41+D38)) -> 10.92388889 | E39: =$E$41+E38 -> 55.43333333 | F39: =$F$41 -> 26 | I39: Anzahl Stunden | J39: =(J37/3600) -> 5.504444444 | K39: =ROUNDDOWN(J39,0) -> 5
D40: =(D39-12) -> -1.076111111 | E40: =(60-E39) -> 4.566666667 | F40: =(60-F39) -> 34
B41: WOZ | C41: =$E$11 -> KLOTEN STADTHAUS | D41: =IF('BERECHNUNG 2'!$Y$9=$F$5,IF($E$5='BERECHNUNG 2'!$AD$16,'BERECHNUNG 2'!$AE16,IF($E$5='BERECHNUNG 2'!$AD$20,'BERECHNUNG 2'!$AE20,IF($E$5='BERECHNUNG 2'!$AD$24,'BERECHNUNG 2'!$AE24,IF($E$5='BERECHNUNG 2'!$AD$28,'BERECHNUNG 2'!$AE28,IF($E$5='BERECHNUNG 2'!$AD$32,'BERECHNUNG 2'!$AE32,IF($E$5='BERECHNUNG 2'!$AD$36,'BERECHNUNG 2'!$AE36,IF($E$5='BERECHNUNG 2'!$AD$40,'BERECHNUNG 2'!$AE40,IF($E$5='BERECHNUNG 2'!$AD$44,'BERECHNUNG 2'!$AE44,IF($E$5='BERECHNUNG 2'!$AD$48,'BERECHNUNG 2'!$AE48,IF($E$5='BERECHNUNG 2'!$AD$52,'BERECHNUNG 2'!$AE52,IF($E$5='BERECHNUNG 2'!$AD$56,'BERECHNUNG 2'!$AE56,IF($E$5='BERECHNUNG 2'!$AD$60,'BERECHNUNG 2'!$AE60,"")))))))))))),"AUSSTEHEND") -> 10 | E41: =IF('BERECHNUNG 2'!$Y$9=$F$5,IF($E$5='BERECHNUNG 2'!$AD$16,'BERECHNUNG 2'!$AF16,IF($E$5='BERECHNUNG 2'!$AD$20,'BERECHNUNG 2'!$AF20,IF($E$5='BERECHNUNG 2'!$AD$24,'BERECHNUNG 2'!$AF24,IF($E$5='BERECHNUNG 2'!$AD$28,'BERECHNUNG 2'!$AF28,IF($E$5='BERECHNUNG 2'!$AD$32,'BERECHNUNG 2'!$AF32,IF($E$5='BERECHNUNG 2'!$AD$36,'BERECHNUNG 2'!$AF36,IF($E$5='BERECHNUNG 2'!$AD$40,'BERECHNUNG 2'!$AF40,IF($E$5='BERECHNUNG 2'!$AD$44,'BERECHNUNG 2'!$AF44,IF($E$5='BERECHNUNG 2'!$AD$48,'BERECHNUNG 2'!$AF48,IF($E$5='BERECHNUNG 2'!$AD$52,'BERECHNUNG 2'!$AF52,IF($E$5='BERECHNUNG 2'!$AD$56,'BERECHNUNG 2'!$AF56,IF($E$5='BERECHNUNG 2'!$AD$60,'BERECHNUNG 2'!$AF60,"")))))))))))),"AUSSTEHEND") -> 55 | F41: =IF('BERECHNUNG 2'!$Y$9=$F$5,IF($E$5='BERECHNUNG 2'!$AD$16,'BERECHNUNG 2'!$AG16,IF($E$5='BERECHNUNG 2'!$AD$20,'BERECHNUNG 2'!$AG20,IF($E$5='BERECHNUNG 2'!$AD$24,'BERECHNUNG 2'!$AG24,IF($E$5='BERECHNUNG 2'!$AD$28,'BERECHNUNG 2'!$AG28,IF($E$5='BERECHNUNG 2'!$AD$32,'BERECHNUNG 2'!$AG32,IF($E$5='BERECHNUNG 2'!$AD$36,'BERECHNUNG 2'!$AG36,IF($E$5='BERECHNUNG 2'!$AD$40,'BERECHNUNG 2'!$AG40,IF($E$5='BERECHNUNG 2'!$AD$44,'BERECHNUNG 2'!$AG44,IF($E$5='BERECHNUNG 2'!$AD$48,'BERECHNUNG 2'!$AG48,IF($E$5='BERECHNUNG 2'!$AD$52,'BERECHNUNG 2'!$AG52,IF($E$5='BERECHNUNG 2'!$AD$56,'BERECHNUNG 2'!$AG56,IF($E$5='BERECHNUNG 2'!$AD$60,'BERECHNUNG 2'!$AG60,"")))))))))))),"AUSSTEHEND") -> 26 | G41: STANDORT | I41: Anzahl Minuten | J41: =(J39-K39)*60 -> 30.26666667 | K41: =ROUNDDOWN(J41,0) -> 30
C42: (Ein allf. Vermerk "AUSSTEHEND" bedeutet, dass die Daten zur Zeitgleichung noch nicht aktualisiert sind)
I43: Anzahl Sekunden | K43: =(J41-K41)*60 -> 16
B44: MOZ | C44: =$E$11 -> KLOTEN STADTHAUS | D44: ='BERECHNUNG 2'!V17 -> 10 | E44: ='BERECHNUNG 2'!W17 -> 49 | F44: ='BERECHNUNG 2'!X17 -> 19 | G44: STANDORT
C48: WAHRE ZEITDIFFERENZ | D48: =IF('BERECHNUNG 2'!$V$8>=0,K39,24-ROUNDUP('BERECHNUNG 2'!$Z$6-(D8+0),0)) -> 5 | E48: =$K$41 -> 30 | F48: =$K$43 -> 16
B50: 2022-01-01 | C50: rev. 04.06.2022

Sheet EINGABEN UND AUSDRUCK
B1: 18:35:02
B5: DATUM AM STANDORT (Anzeige rechts eintragen) | D5: ='STARTE DIE UHR!'!$B$11 -> 28 | E5: ='STARTE DIE UHR!'!$B$10 -> 4 | F5: ='STARTE DIE UHR!'!$B$9-2000 -> 23 | G5: =TODAY() -> 2023-04-28
B6: BESTIMMUNG DER SOLAREN ORTSZEIT AM STANDORT UND AM ZIELORT (WOZ UND MOZ)
B8: 2021-10-02 | D8: ='STARTE DIE UHR!'!$B$2+D9 -> 14 | E8: ='STARTE DIE UHR!'!$B$3 -> 43 | F8: ='STARTE DIE UHR!'!$B$4 -> 34 | G8: =NOW() -> 45044.69692
B9: BERICHTIGUNG DER LOKALEN UHRZEIT AM STANDORT AUF UTC-ZEIT | D9: -2 | E9: LOKALE UHRZEIT | F9: ='STARTE DIE UHR!'!$B$1 -> 45044.69692
B10: (Schweiz /MEZ: Sommer -2; Winter -1) | F10: ='STARTE DIE UHR!'!B3 -> 43
B11: LÄNGENGRAD AM ZIELORT *Rechtsklick auf Bild od. Marke | D11: 8.5809591 | E11: KLOTEN STADTHAUS | G11: *Längengrad?
D12: (± X,……......) | E12: (Name des Standorts, fakultativ)
B14: LÄNGENGRAD AM ZIELORT *Rechtsklick auf Bild od. Marke | D14: -73.9857635 | E14: NEW YORK EMP.ST. BUILDING | G14: *Längengrad?
D15: (± X,……......) | E15: (Name des Zielorts, fakultativ)
B18: =$E$11 -> KLOTEN STADTHAUS | D18: =$E$14 -> NEW YORK EMP.ST. BUILDING
G25: Uhren mit WOZ
D30: =(E33/60)+(F33/3600) -> 0.7527777778 | E30: =(F33/60) -> 0.1666666667
D31: =IF(D33>=12,(D33+D30)-12,(D33+D30)) -> 9.752777778 | E31: =$E$33+E30 -> 45.16666667 | F31: =$F$33 -> 10 | G31: oekopriority.com | I31: Differenzbildung:
D32: =(D31-12) -> -2.247222222 | E32: =(60-E31) -> 14.83333333 | F32: =(60-F31) -> 50
B33: WOZ | C33: =$E$14 -> NEW YORK EMP.ST. BUILDING | D33: =IF(BERECHNUNG!$Y$9=$F$5,IF($E$5=BERECHNUNG!$AD$16,BERECHNUNG!$AA16,IF($E$5=BERECHNUNG!$AD$20,BERECHNUNG!$AA20,IF($E$5=BERECHNUNG!$AD$24,BERECHNUNG!$AA24,IF($E$5=BERECHNUNG!$AD$28,BERECHNUNG!$AA28,IF($E$5=BERECHNUNG!$AD$32,BERECHNUNG!$AA32,IF($E$5=BERECHNUNG!$AD$36,BERECHNUNG!$AA36,IF($E$5=BERECHNUNG!$AD$40,BERECHNUNG!$AA40,IF($E$5=BERECHNUNG!$AD$44,BERECHNUNG!$AA44,IF($E$5=BERECHNUNG!$AD$48,BERECHNUNG!$AA48,IF($E$5=BERECHNUNG!$AD$52,BERECHNUNG!$AA52,IF($E$5=BERECHNUNG!$AD$56,BERECHNUNG!$AA56,IF($E$5=BERECHNUNG!$AD$60,BERECHNUNG!$AA60,"")))))))))))),"AUSSTEHEND") -> 9 | E33: =IF(BERECHNUNG!$Y$9=$F$5,IF($E$5=BERECHNUNG!$AD$16,BERECHNUNG!$AB16,IF($E$5=BERECHNUNG!$AD$20,BERECHNUNG!$AB20,IF($E$5=BERECHNUNG!$AD$24,BERECHNUNG!$AB24,IF($E$5=BERECHNUNG!$AD$28,BERECHNUNG!$AB28,IF($E$5=BERECHNUNG!$AD$32,BERECHNUNG!$AB32,IF($E$5=BERECHNUNG!$AD$36,BERECHNUNG!$AB36,IF($E$5=BERECHNUNG!$AD$40,BERECHNUNG!$AB40,IF($E$5=BERECHNUNG!$AD$44,BERECHNUNG!$AB44,IF($E$5=BERECHNUNG!$AD$48,BERECHNUNG!$AB48,IF($E$5=BERECHNUNG!$AD$52,BERECHNUNG!$AB52,IF($E$5=BERECHNUNG!$AD$56,BERECHNUNG!$AB56,IF($E$5=BERECHNUNG!$AD$60,BERECHNUNG!$AB60,"")))))))))))),"AUSSTEHEND") -> 45 | F33: =IF(BERECHNUNG!$Y$9=$F$5,IF($E$5=BERECHNUNG!$AD$16,BERECHNUNG!$AC16,IF($E$5=BERECHNUNG!$AD$20,BERECHNUNG!$AC20,IF($E$5=BERECHNUNG!$AD$24,BERECHNUNG!$AC24,IF($E$5=BERECHNUNG!$AD$28,BERECHNUNG!$AC28,IF($E$5=BERECHNUNG!$AD$32,BERECHNUNG!$AC32,IF($E$5=BERECHNUNG!$AD$36,BERECHNUNG!$AC36,IF($E$5=BERECHNUNG!$AD$40,BERECHNUNG!$AC40,IF($E$5=BERECHNUNG!$AD$44,BERECHNUNG!$AC44,IF($E$5=BERECHNUNG!$AD$48,BERECHNUNG!$AC48,IF($E$5=BERECHNUNG!$AD$52,BERECHNUNG!$AC52,IF($E$5=BERECHNUNG!$AD$56,BERECHNUNG!$AC56,IF($E$5=BERECHNUNG!$AD$60,BERECHNUNG!$AC60,"")))))))))))),"AUSSTEHEND") -> 10 | G33: ZIELORT | J33: =(D41*3600+E41*60+F41) -> 54926
C34: (Ein allf. Vermerk "AUSSTEHEND" bedeutet, dass die Daten zur Zeitgleichung noch nicht aktualisiert sind)
I35: Summenbsec. WOZ Zielort | J35: =(D33*3600+E33*60+F33) -> 35110
B36: MOZ | C36: =$E$14 -> NEW YORK EMP.ST. BUILDING | D36: =BERECHNUNG!$V$13 -> 9 | E36: =BERECHNUNG!$W$13 -> 47 | F36: =BERECHNUNG!$X$13 -> 37 | G36: ZIELORT
D37: =IF(D36<0,"Minus = Vortag","") ->  | I37: Differe nzsec absolut | J37: =ABS(J33-J35) -> 19816
D38: =(E41/60+F41/3600) -> 0.2572222222 | E38: =(F41/60) -> 0.4333333333
D39: =IF(D41>=12,(D41+D38)-12,(D41+D38)) -> 3.257222222 | E39: =$E$41+E38 -> 15.43333333 | F39: =$F$41 -> 26 | I39: Anzahl Stunden | J39: =(J37/3600) -> 5.504444444 | K39: =ROUNDDOWN(J39,0) -> 5
D40: =(D39-12) -> -8.742777778 | E40: =(60-E39) -> 44.56666667 | F40: =(60-F39) -> 34
B41: WOZ | C41: =$E$11 -> KLOTEN STADTHAUS | D41: =IF(BERECHNUNG!$Y$9=$F$5,IF($E$5=BERECHNUNG!$AD$16,BERECHNUNG!$AE16,IF($E$5=BERECHNUNG!$AD$20,BERECHNUNG!$AE20,IF($E$5=BERECHNUNG!$AD$24,BERECHNUNG!$AE24,IF($E$5=BERECHNUNG!$AD$28,BERECHNUNG!$AE28,IF($E$5=BERECHNUNG!$AD$32,BERECHNUNG!$AE32,IF($E$5=BERECHNUNG!$AD$36,BERECHNUNG!$AE36,IF($E$5=BERECHNUNG!$AD$40,BERECHNUNG!$AE40,IF($E$5=BERECHNUNG!$AD$44,BERECHNUNG!$AE44,IF($E$5=BERECHNUNG!$AD$48,BERECHNUNG!$AE48,IF($E$5=BERECHNUNG!$AD$52,BERECHNUNG!$AE52,IF($E$5=BERECHNUNG!$AD$56,BERECHNUNG!$AE56,IF($E$5=BERECHNUNG!$AD$60,BERECHNUNG!$AE60,"")))))))))))),"AUSSTEHEND") -> 15 | E41: =IF(BERECHNUNG!$Y$9=$F$5,IF($E$5=BERECHNUNG!$AD$16,BERECHNUNG!$AF16,IF($E$5=BERECHNUNG!$AD$20,BERECHNUNG!$AF20,IF($E$5=BERECHNUNG!$AD$24,BERECHNUNG!$AF24,IF($E$5=BERECHNUNG!$AD$28,BERECHNUNG!$AF28,IF($E$5=BERECHNUNG!$AD$32,BERECHNUNG!$AF32,IF($E$5=BERECHNUNG!$AD$36,BERECHNUNG!$AF36,IF($E$5=BERECHNUNG!$AD$40,BERECHNUNG!$AF40,IF($E$5=BERECHNUNG!$AD$44,BERECHNUNG!$AF44,IF($E$5=BERECHNUNG!$AD$48,BERECHNUNG!$AF48,IF($E$5=BERECHNUNG!$AD$52,BERECHNUNG!$AF52,IF($E$5=BERECHNUNG!$AD$56,BERECHNUNG!$AF56,IF($E$5=BERECHNUNG!$AD$60,BERECHNUNG!$AF60,"")))))))))))),"AUSSTEHEND") -> 15 | F41: =IF(BERECHNUNG!$Y$9=$F$5,IF($E$5=BERECHNUNG!$AD$16,BERECHNUNG!$AG16,IF($E$5=BERECHNUNG!$AD$20,BERECHNUNG!$AG20,IF($E$5=BERECHNUNG!$AD$24,BERECHNUNG!$AG24,IF($E$5=BERECHNUNG!$AD$28,BERECHNUNG!$AG28,IF($E$5=BERECHNUNG!$AD$32,BERECHNUNG!$AG32,IF($E$5=BERECHNUNG!$AD$36,BERECHNUNG!$AG36,IF($E$5=BERECHNUNG!$AD$40,BERECHNUNG!$AG40,IF($E$5=BERECHNUNG!$AD$44,BERECHNUNG!$AG44,IF($E$5=BERECHNUNG!$AD$48,BERECHNUNG!$AG48,IF($E$5=BERECHNUNG!$AD$52,BERECHNUNG!$AG52,IF($E$5=BERECHNUNG!$AD$56,BERECHNUNG!$AG56,IF($E$5=BERECHNUNG!$AD$60,BERECHNUNG!$AG60,"")))))))))))),"AUSSTEHEND") -> 26 | G41: STANDORT | J41: =(J39-K39)*60 -> 30.26666667 | K41: =ROUNDDOWN(J41,0) -> 30
C42: (Ein allf. Vermerk "AUSSTEHEND" bedeutet, dass die Daten zur Zeitgleichung noch nicht aktualisiert sind)
I43: Anzahl Sekunden | K43: =(J41-K41)*60 -> 16
B44: MOZ | C44: =$C$41 -> KLOTEN STADTHAUS | D44: =BERECHNUNG!$V$17 -> 15 | E44: =BERECHNUNG!$W$17 -> 17 | F44: =BERECHNUNG!$X$17 -> 53 | G44: STANDORT
B46: Informativ: MOMENTANE ZEITGLEICHUNG MEZ. Polynomische Funktionen basierend auf: | E46: =$J$49*-1 -> 2 | F46: =$K$49 -> 27
B47: LINK --> HELIOS Zeitgleichungstabelle 2023 (für Standorte mit MEZ)
H48: Sek. Summe WOZ | I48: =(D41*3600+E41*60+F41) -> 54926 | J48: Dezimal Min.Diff | K48: =(I48-I49)/60 -> -2.45
B49: WAHRE ZEITDIFFERENZ | D49: =IF([1]BERECHNUNG!$V$8>=0,K39,24-ROUNDUP([1]BERECHNUNG!$Z$6-(D8+0),0)) -> 5 | E49: =$K$41 -> 30 | F49: =$K$43 -> 16 | H49: Sek. Summe MOZ | I49: =(D44*3600+E44*60+F44) -> 55073 | J49: =ROUNDDOWN($K$48,0) -> -2 | K49: =ABS(K48-J49)*60 -> 27
B51: 2022-01-01 | C51: rev. 04.06.2022 erweitert 07.01.2023

Sheet BERECHNUNG 2 (hidden)
A1: =BERECHNUNG!A1 -> 1 | B1: =BERECHNUNG!B1 -> -3 | C1: =BERECHNUNG!C1 -> 24 | D1: =(C1/60) -> 0.4 | F1: Januar | G1: Februar | H1: März | I1: April
A2: =BERECHNUNG!A2 -> 2 | B2: =BERECHNUNG!B2 -> -3 | C2: =BERECHNUNG!C2 -> 53 | D2: 0.8833333333 | E2: 1 | F2: =(B1-D1) -> -3.4 | G2: -13.53333333 | H2: -12.31666667 | I2: -3.883333333 | K2: GRAFIKEN SIEHE "BERECHNUNG" | V2: std | W2: min | X2: sec | Y2: Summe sec
A3: =BERECHNUNG!A3 -> 3 | B3: =BERECHNUNG!B3 -> -4 | C3: =BERECHNUNG!C3 -> 20 | D3: 0.3333333333 | E3: 2 | F3: -3.883333333 | G3: -13.66666667 | H3: -12.11666667 | I3: -3.583333333 | U3: ARMBAND - UHRZEIT (mein Standort) | V3: =' EINGABEN UND AUSDRUCK'!$D$8 -> 10 | W3: =' EINGABEN UND AUSDRUCK'!$E$8 -> 15 | X3: =' EINGABEN UND AUSDRUCK'!$F$8 -> 0 | Y3: =(3600*V3+60*W3+X3) -> 36900
A4: =BERECHNUNG!A4 -> 4 | B4: =BERECHNUNG!B4 -> -4 | C4: =BERECHNUNG!C4 -> 48 | D4: 0.8 | E4: 3 | F4: -4.333333333 | G4: -13.78333333 | H4: -11.91666667 | I4: -3.3 | U4: (berichtigt auf UTC; CH / MEZ: Sommer -2, Winter - 1) | X4: Längngrad - Zuschalag | Y4: =(V5*4*60) -> 2059.430184 | Z4: Wenn V8 = negativ, dann 24 + (Y6/3600)
A5: =BERECHNUNG!A5 -> 5 | B5: =BERECHNUNG!B5 -> -5 | C5: =BERECHNUNG!C5 -> 15 | D5: 0.25 | E5: 4 | F5: -4.8 | G5: -13.86666667 | H5: -11.7 | I5: -3 | U5: LÄNGENGRAD (mein Standort) | V5: =' EINGABEN UND AUSDRUCK'!$D$11 -> 8.5809591 | X5: Summe am Standort | Y5: =(Y3+Y4) -> 38959.43018 | Z5: ↓
A6: =BERECHNUNG!A6 -> 6 | B6: =BERECHNUNG!B6 -> -5 | C6: =BERECHNUNG!C6 -> 41 | D6: 0.6833333333 | E6: 5 | F6: -5.25 | G6: -13.96666667 | H6: -11.48333333 | I6: -2.716666667 | U6: (z.B. Google Maps) | X6: Summe am Zielort | Y6: =(Y5+((V7-V5)*4*60)+((0)*0)) -> 19143.41676 | Z6: =(24+(Y6/3600)) -> 29.31761577
A7: =BERECHNUNG!A7 -> 7 | B7: =BERECHNUNG!B7 -> -6 | C7: =BERECHNUNG!C7 -> 7 | D7: 0.1166666667 | E7: 6 | F7: -5.683333333 | G7: -14.03333333 | H7: -11.25 | I7: -2.433333333 | U7: LÄNGENGRAD (Zielort) | V7: =' EINGABEN UND AUSDRUCK'!$D$14 -> -73.9857635 | Y7: =' EINGABEN UND AUSDRUCK'!$E$14 -> NEW YORK EMP.ST. BUILDING
A8: =BERECHNUNG!A8 -> 8 | B8: =BERECHNUNG!B8 -> -6 | C8: =BERECHNUNG!C8 -> 33 | D8: 0.55 | E8: 7 | F8: -6.116666667 | G8: -14.1 | H8: -11.01666667 | I8: -2.15 | U8: (z.B. Google Maps) MOZ am Zielort | V8: =(Y6/3600) -> 5.317615767 | W8: =IF(V8>=0,(V8-V13),1+(V8-ROUNDDOWN(V8,0))) -> 0.3176157667 | X8: =(W8*60) -> 19.056946 | Y8: Zerlegung
A9: =BERECHNUNG!A9 -> 9 | B9: =BERECHNUNG!B9 -> -6 | C9: =BERECHNUNG!C9 -> 58 | D9: 0.9666666667 | E9: 8 | F9: -6.55 | G9: -14.13333333 | H9: -10.76666667 | I9: -1.866666667 | U9: "n - ter" - TAG DES MONATS (mein Standort) | V9: =' EINGABEN UND AUSDRUCK'!$D$5 -> 7 | W9: JAHRZAHL (-DEZIMALE) DER ZEITGLEICHUNGS-TABELLE | Y9: 23
A10: =BERECHNUNG!A10 -> 10 | B10: =BERECHNUNG!B10 -> -7 | C10: =BERECHNUNG!C10 -> 22 | D10: 0.3666666667 | E10: 9 | F10: -6.966666667 | G10: -14.16666667 | H10: -10.53333333 | I10: -1.6 | U10: MOZ am Standort | V10: =(Y5/3600) -> 10.82206394 | W10: =V10-ROUNDDOWN(V10,0) -> 0.82206394 | X10: =(W10*60) -> 49.3238364 | AB10: 2
A11: =BERECHNUNG!A11 -> 11 | B11: =BERECHNUNG!B11 -> -7 | C11: =BERECHNUNG!C11 -> 46 | D11: 0.7666666667 | E11: 10 | F11: -7.366666667 | G11: -14.18333333 | H11: -10.26666667 | I11: -1.333333333 | V11: MITTLERE ORTSZEIT AM ZIELORT (MOZ) | Y11: Summendiff. sec für
A12: =BERECHNUNG!A12 -> 12 | B12: =BERECHNUNG!B12 -> -8 | C12: =BERECHNUNG!C12 -> 9 | D12: 0.15 | E12: 11 | F12: -7.766666667 | G12: -14.2 | H12: -10.01666667 | I12: -1.066666667 | V12: std | W12: min | X12: sec | Y12: Zeitgleichung "vor/nach" 12:00
A13: =BERECHNUNG!A13 -> 13 | B13: =BERECHNUNG!B13 -> -8 | C13: =BERECHNUNG!C13 -> 32 | D13: 0.5333333333 | E13: 12 | F13: -8.15 | G13: -14.18333333 | H13: -9.75 | I13: -0.8 | V13: =IF($V$8>=0,ROUNDDOWN($V$8,0),ROUNDDOWN(-1*$V$14,0)) -> 5 | W13: =ROUNDDOWN(IF($V$8>=0,ROUNDDOWN($X$8,0),W14*60),0) -> 19 | X13: =IF(V8>=0,ROUND((X8-W13)*60,0),ROUND(X14*60,0)) -> 3 | Y13: =((V17-12)*60*60+W17*60+X17)-((V5/15)*60*60) -> -6300.430184
A14: =BERECHNUNG!A14 -> 14 | B14: =BERECHNUNG!B14 -> -8 | C14: =BERECHNUNG!C14 -> 54 | D14: 0.9 | E14: 13 | F14: -8.533333333 | G14: -14.16666667 | H14: -9.483333333 | I14: -0.55 | V14: =$Z$6 -> 29.31761577 | W14: =($V$14-ROUNDDOWN($V$14,0)) -> 0.3176157667 | X14: =(W14*60-W13) -> 0.056946 | Y14: GEMESSEN AM 0° - MERIDIAN
A15: =BERECHNUNG!A15 -> 15 | B15: =BERECHNUNG!B15 -> -9 | C15: =BERECHNUNG!C15 -> 16 | D15: 0.2666666667 | E15: 14 | F15: -8.9 | G15: -14.13333333 | H15: -9.2 | I15: -0.3 | V15: X am 0° - Meridian= | W15: =($V$9+((1.1574074074*10^-5)*$Y$13)) -> 6.927078354 | X15: (n-ter Tag) | Y15: MIN | Z15: SEC | AA15: WAHRE ORTSZEIT AM ZIELORT (WOZ) (std:min:sec) | AD15: Monat | AE15: WAHRE ORTSZEIT AM STANDORT
A16: =BERECHNUNG!A16 -> 16 | B16: =BERECHNUNG!B16 -> -9 | C16: =BERECHNUNG!C16 -> 37 | D16: 0.6166666667 | E16: 15 | F16: -9.266666667 | G16: -14.08333333 | H16: -8.916666667 | I16: -0.05 | U16: JANUAR | V16: Y gleitende ZG am 0°-Meridian= | W16: =(0.0055*W15^2-0.5116*W15-2.837) -> -6.116979006 | X16: Y = | Y16: =ROUNDDOWN(W16,0) -> -6 | Z16: =IF(Y16>=0,ROUND(ABS(W16-Y16)*60,0),-ROUND(ABS(W16-Y16)*60,0)) -> -7 | AA16: =IF($V$8>=0,ROUNDDOWN(AA17,0),ROUNDDOWN(AA18*-1,0)) -> 5 | AB16: =IF($V$8>=0,ROUNDDOWN(AB17,0),ROUNDDOWN(AB18,0)) -> 25 | AC16: =IF($V$8>=0,ROUNDDOWN(AC17,0),ROUNDUP(AC18,0)) -> 10 | AD16: 1 | AE16: =ROUNDDOWN(AE17,0) -> 10 | AF16: =ROUNDDOWN(AF17,0) -> 55 | AG16: =ROUND(AG17*60,0) -> 26
A17: =BERECHNUNG!A17 -> 17 | B17: =BERECHNUNG!B17 -> -9 | C17: =BERECHNUNG!C17 -> 57 | D17: 0.95 | E17: 16 | F17: -9.616666667 | G17: -14.03333333 | H17: -8.633333333 | I17: 0.1833333333 | U17: Hilfszeile: MOZ am Standort (std:min:sec) | V17: =ROUNDDOWN($V$10,0) -> 10 | W17: =ROUNDDOWN($X$10,0) -> 49 | X17: =ROUND((X10-W17)*60,0) -> 19 | AA17: =($V$8*60*60-W16*60)/3600 -> 5.419565417 | AB17: =(AA17-ROUNDDOWN(AA17,0))*60 -> 25.17392501 | AC17: =(AB17-ROUNDDOWN(AB17,0))*60 -> 10.43550037 | AE17: =($V$10*60*60-W16*60)/3600 -> 10.92401359 | AF17: =(AE17-ROUNDDOWN(AE17,0))*60 -> 55.44081541 | AG17: =(AF17-ROUNDDOWN(AF17,0)) -> 0.4408154062
A18: =BERECHNUNG!A18 -> 18 | B18: =BERECHNUNG!B18 -> -10 | C18: =BERECHNUNG!C18 -> 17 | D18: 0.2833333333 | E18: 17 | F18: -9.95 | G18: -13.96666667 | H18: -8.35 | I18: 0.4166666667 | AA18: =(AD18/3600) -> 29.21567132 | AB18: =(AA18-ROUNDDOWN(AA18,0))*60 -> 12.94027933 | AC18: =(AB18-ROUNDDOWN(AB18,0))*60 -> 56.41676 | AD18: =($Z$6*3600+Y16*60+Z16) -> 105176.4168
A19: =BERECHNUNG!A19 -> 19 | B19: =BERECHNUNG!B19 -> -10 | C19: =BERECHNUNG!C19 -> 36 | D19: 0.6 | E19: 18 | F19: -10.28333333 | G19: -13.88333333 | H19: -8.066666667 | I19: 0.65 | V19: X am 0° - Meridian= | W19: =($V$9+((1.1574074074*10^-5)*$Y$13)) -> 6.927078354 | X19: (n-ter Tag) | Y19: MIN | Z19: SEC | AA19: WAHRE ORTSZEIT AM ZIELORT (std:min:sec)
A20: =BERECHNUNG!A20 -> 20 | B20: =BERECHNUNG!B20 -> -10 | C20: =BERECHNUNG!C20 -> 54 | D20: 0.9 | E20: 19 | F20: -10.6 | G20: -13.78333333 | H20: -7.766666667 | I20: 0.8666666667 | U20: FEBRUAR | V20: Y gleitende ZG am 0°-Meridian= | W20: =(0.006*W19^2-0.1334*W19-13.438) -> -14.07416577 | X20: Y = | Y20: =ROUNDDOWN(W20,0) -> -14 | Z20: =IF(Y20>=0,ROUND(ABS(W20-Y20)*60,0),-ROUND(ABS(W20-Y20)*60,0)) -> -4 | AA20: =IF($V$8>=0,ROUNDDOWN(AA21,0),ROUNDDOWN(AA22*-1,0)) -> 5 | AB20: =IF($V$8>=0,ROUNDDOWN(AB21,0),ROUNDDOWN(AB22,0)) -> 33 | AC20: =IF($V$8>=0,ROUNDDOWN(AC21,0),ROUNDUP(AC22,0)) -> 7 | AD20: 2 | AE20: =ROUNDDOWN(AE21,0) -> 11 | AF20: =ROUNDDOWN(AF21,0) -> 3 | AG20: =ROUND(AG21*60,0) -> 24
A21: =BERECHNUNG!A21 -> 21 | B21: =BERECHNUNG!B21 -> -11 | C21: =BERECHNUNG!C21 -> 11 | D21: 0.1833333333 | E21: 20 | F21: -10.9 | G21: -13.68333333 | H21: -7.466666667 | I21: 1.083333333 | AA21: =($V$8*60*60-W20*60)/3600 -> 5.552185196 | AB21: =(AA21-ROUNDDOWN(AA21,0))*60 -> 33.13111177 | AC21: =(AB21-ROUNDDOWN(AB21,0))*60 -> 7.866705918 | AE21: =($V$10*60*60-W20*60)/3600 -> 11.05663337 | AF21: =(AE21-ROUNDDOWN(AE21,0))*60 -> 3.398002165 | AG21: =(AF21-ROUNDDOWN(AF21,0)) -> 0.3980021653
A22: =BERECHNUNG!A22 -> 22 | B22: =BERECHNUNG!B22 -> -11 | C22: =BERECHNUNG!C22 -> 28 | D22: 0.4666666667 | E22: 21 | F22: -11.18333333 | G22: -13.56666667 | H22: -7.166666667 | I22: 1.283333333 | AA22: =(AD22/3600) -> 29.08317132 | AB22: =(AA22-ROUNDDOWN(AA22,0))*60 -> 4.990279333 | AC22: =(AB22-ROUNDDOWN(AB22,0))*60 -> 59.41676 | AD22: =($Z$6*3600+Y20*60+Z20) -> 104699.4168
A23: =BERECHNUNG!A23 -> 23 | B23: =BERECHNUNG!B23 -> -11 | C23: =BERECHNUNG!C23 -> 44 | D23: 0.7333333333 | E23: 22 | F23: -11.46666667 | G23: -13.45 | H23: -6.883333333 | I23: 1.483333333 | V23: X am 0° - Meridian= | W23: =($V$9+((1.1574074074*10^-5)*$Y$13)) -> 6.927078354 | X23: (n-ter Tag) | Y23: MIN | Z23: SEC | AA23: WAHRE ORTSZEIT AM ZIELORT (std:min:sec)
A24: =BERECHNUNG!A24 -> 24 | B24: =BERECHNUNG!B24 -> -11 | C24: =BERECHNUNG!C24 -> 59 | D24: 0.9833333333 | E24: 23 | F24: -11.73333333 | G24: -13.31666667 | H24: -6.583333333 | I24: 1.666666667 | U24: MÄRZ | V24: Y gleitende ZG am 0°-Meridian= | W24: =(0.0018*W23^2+0.2202*W23-12.611) -> -10.9992854 | X24: Y = | Y24: =ROUNDDOWN(W24,0) -> -10 | Z24: =IF(Y24>=0,ROUND(ABS(W24-Y24)*60,0),-ROUND(ABS(W24-Y24)*60,0)) -> -60 | AA24: =IF($V$8>=0,ROUNDDOWN(AA25,0),ROUNDDOWN(AA26*-1,0)) -> 5 | AB24: =IF($V$8>=0,ROUNDDOWN(AB25,0),ROUNDDOWN(AB26,0)) -> 30 | AC24: =IF($V$8>=0,ROUNDDOWN(AC25,0),ROUNDUP(AC26,0)) -> 3 | AD24: 3 | AE24: =ROUNDDOWN(AE25,0) -> 11 | AF24: =ROUNDDOWN(AF25,0) -> 0 | AG24: =ROUND(AG25*60,0) -> 19
A25: =BERECHNUNG!A25 -> 25 | B25: =BERECHNUNG!B25 -> -12 | C25: =BERECHNUNG!C25 -> 13 | D25: 0.2166666667 | E25: 24 | F25: -11.98333333 | G25: -13.16666667 | H25: -6.266666667 | I25: 1.85 | AA25: =($V$8*60*60-W24*60)/3600 -> 5.50093719 | AB25: =(AA25-ROUNDDOWN(AA25,0))*60 -> 30.0562314 | AC25: =(AB25-ROUNDDOWN(AB25,0))*60 -> 3.373884013 | AE25: =($V$10*60*60-W24*60)/3600 -> 11.00538536 | AF25: =(AE25-ROUNDDOWN(AE25,0))*60 -> 0.3231218002 | AG25: =(AF25-ROUNDDOWN(AF25,0)) -> 0.3231218002
A26: =BERECHNUNG!A26 -> 26 | B26: =BERECHNUNG!B26 -> -12 | C26: =BERECHNUNG!C26 -> 26 | D26: 0.4333333333 | E26: 25 | F26: -12.21666667 | G26: -13.01666667 | H26: -5.966666667 | I26: 2.016666667 | AA26: =(AD26/3600) -> 29.13428243 | AB26: =(AA26-ROUNDDOWN(AA26,0))*60 -> 8.056946 | AC26: =(AB26-ROUNDDOWN(AB26,0))*60 -> 3.41676 | AD26: =($Z$6*3600+Y24*60+Z24) -> 104883.4168
A27: =BERECHNUNG!A27 -> 27 | B27: =BERECHNUNG!B27 -> -12 | C27: =BERECHNUNG!C27 -> 39 | D27: 0.65 | E27: 26 | F27: -12.43333333 | G27: -12.85 | H27: -5.666666667 | I27: 2.183333333 | V27: X am 0° - Meridian= | W27: =($V$9+((1.1574074074*10^-5)*$Y$13)) -> 6.927078354 | X27: (n-ter Tag) | Y27: MIN | Z27: SEC | AA27: WAHRE ORTSZEIT AM ZIELORT (std:min:sec)
A28: =BERECHNUNG!A28 -> 28 | B28: =BERECHNUNG!B28 -> -12 | C28: =BERECHNUNG!C28 -> 51 | D28: 0.85 | E28: 27 | F28: -12.65 | G28: -12.68333333 | H28: -5.366666667 | I28: 2.35 | U28: APRIL | V28: Y gleitende ZG am 0°-Meridian= | W28: =(-0.0029*W27^2+0.3223*W27-4.3157) -> -2.222257449 | X28: Y = | Y28: =ROUNDDOWN(W28,0) -> -2 | Z28: =IF(Y28>=0,ROUND(ABS(W28-Y28)*60,0),-ROUND(ABS(W28-Y28)*60,0)) -> -13 | AA28: =IF($V$8>=0,ROUNDDOWN(AA29,0),ROUNDDOWN(AA30*-1,0)) -> 5 | AB28: =IF($V$8>=0,ROUNDDOWN(AB29,0),ROUNDDOWN(AB30,0)) -> 21 | AC28: =IF($V$8>=0,ROUNDDOWN(AC29,0),ROUNDUP(AC30,0)) -> 16 | AD28: 4 | AE28: =ROUNDDOWN(AE29,0) -> 10 | AF28: =ROUNDDOWN(AF29,0) -> 51 | AG28: =ROUND(AG29*60,0) -> 33
A29: =BERECHNUNG!A29 -> 29 | B29: =BERECHNUNG!B29 -> -13 | C29: =BERECHNUNG!C29 -> 2 | D29: 0.03333333333 | E29: 28 | F29: -12.85 | G29: -12.5 | H29: -5.066666667 | I29: 2.5 | AA29: =($V$8*60*60-W28*60)/3600 -> 5.354653391 | AB29: =(AA29-ROUNDDOWN(AA29,0))*60 -> 21.27920345 | AC29: =(AB29-ROUNDDOWN(AB29,0))*60 -> 16.75220691 | AE29: =($V$10*60*60-W28*60)/3600 -> 10.85910156 | AF29: =(AE29-ROUNDDOWN(AE29,0))*60 -> 51.54609385 | AG29: =(AF29-ROUNDDOWN(AF29,0)) -> 0.5460938485
A30: =BERECHNUNG!A30 -> 30 | B30: =BERECHNUNG!B30 -> -13 | C30: =BERECHNUNG!C30 -> 12 | D30: 0.2 | E30: 29 | F30: -13.03333333 | H30: -4.766666667 | I30: 2.633333333 | AA30: =(AD30/3600) -> 29.28067132 | AB30: =(AA30-ROUNDDOWN(AA30,0))*60 -> 16.84027933 | AC30: =(AB30-ROUNDDOWN(AB30,0))*60 -> 50.41676 | AD30: =($Z$6*3600+Y28*60+Z28) -> 105410.4168
A31: =BERECHNUNG!A31 -> 31 | B31: =BERECHNUNG!B31 -> -13 | C31: =BERECHNUNG!C31 -> 21 | D31: 0.35 | E31: 30 | F31: -13.2 | H31: -4.466666667 | I31: 2.766666667 | V31: X am 0° - Meridian= | W31: =($V$9+((1.1574074074*10^-5)*$Y$13)) -> 6.927078354 | X31: (n-ter Tag) | Y31: MIN | Z31: SEC | AA31: WAHRE ORTSZEIT AM ZIELORT (std:min:sec)
A32: =BERECHNUNG!A32 -> Februar | D32: Februar | E32: 31 | F32: -13.35 | H32: -4.166666667 | U32: MAI | V32: Y gleitende ZG am 0°-Meridian= | W32: =(-0.0046*W31^2+0.12777*W31+2.7528) -> 3.417144495 | X32: Y = | Y32: =ROUNDDOWN(W32,0) -> 3 | Z32: =IF(Y32>=0,ROUND(ABS(W32-Y32)*60,0),-ROUND(ABS(W32-Y32)*60,0)) -> 25 | AA32: =IF($V$8>=0,ROUNDDOWN(AA33,0),ROUNDDOWN(AA34*-1,0)) -> 5 | AB32: =IF($V$8>=0,ROUNDDOWN(AB33,0),ROUNDDOWN(AB34,0)) -> 15 | AC32: =IF($V$8>=0,ROUNDDOWN(AC33,0),ROUNDUP(AC34,0)) -> 38 | AD32: 5 | AE32: =ROUNDDOWN(AE33,0) -> 10 | AF32: =ROUNDDOWN(AF33,0) -> 45 | AG32: =ROUND(AG33*60,0) -> 54
A33: =BERECHNUNG!A33 -> 1 | B33: =BERECHNUNG!B33 -> -13 | C33: =BERECHNUNG!C33 -> 30 | D33: =(B33-(C33/60)) -> -13.5 | AA33: =($V$8*60*60-W32*60)/3600 -> 5.260663358 | AB33: =(AA33-ROUNDDOWN(AA33,0))*60 -> 15.63980151 | AC33: =(AB33-ROUNDDOWN(AB33,0))*60 -> 38.38809033 | AE33: =($V$10*60*60-W32*60)/3600 -> 10.76511153 | AF33: =(AE33-ROUNDDOWN(AE33,0))*60 -> 45.90669191 | AG33: =(AF33-ROUNDDOWN(AF33,0)) -> 0.9066919055
A34: =BERECHNUNG!A34 -> 2 | B34: =BERECHNUNG!B34 -> -13 | C34: =BERECHNUNG!C34 -> 37 | D34: -13.61666667 | AA34: =(AD34/3600) -> 29.37456021 | AB34: =(AA34-ROUNDDOWN(AA34,0))*60 -> 22.47361267 | AC34: =(AB34-ROUNDDOWN(AB34,0))*60 -> 28.41676 | AD34: =($Z$6*3600+Y32*60+Z32) -> 105748.4168
A35: =BERECHNUNG!A35 -> 3 | B35: =BERECHNUNG!B35 -> -13 | C35: =BERECHNUNG!C35 -> 44 | D35: -13.73333333 | V35: X am 0° - Meridian= | W35: =($V$9+((1.1574074074*10^-5)*$Y$13)) -> 6.927078354 | X35: (n-ter Tag) | Y35: MIN | Z35: SEC | AA35: WAHRE ORTSZEIT AM ZIELORT (std:min:sec)
A36: =BERECHNUNG!A36 -> 4 | B36: =BERECHNUNG!B36 -> -13 | C36: =BERECHNUNG!C36 -> 50 | D36: -13.83333333 | U36: JUNI | V36: Y gleitende ZG am 0°-Meridian= | W36: =(-0.0006*W35^2-0.1879*W35+2.4035) -> 1.073111329 | X36: Y = | Y36: =ROUNDDOWN(W36,0) -> 1 | Z36: =IF(Y36>=0,ROUND(ABS(W36-Y36)*60,0),-ROUND(ABS(W36-Y36)*60,0)) -> 4 | AA36: =IF($V$8>=0,ROUNDDOWN(AA37,0),ROUNDDOWN(AA38*-1,0)) -> 5 | AB36: =IF($V$8>=0,ROUNDDOWN(AB37,0),ROUNDDOWN(AB38,0)) -> 17 | AC36: =IF($V$8>=0,ROUNDDOWN(AC37,0),ROUNDUP(AC38,0)) -> 59 | AD36: 6 | AE36: =ROUNDDOWN(AE37,0) -> 10 | AF36: =ROUNDDOWN(AF37,0) -> 48 | AG36: =ROUND(AG37*60,0) -> 15
A37: =BERECHNUNG!A37 -> 5 | B37: =BERECHNUNG!B37 -> -13 | C37: =BERECHNUNG!C37 -> 56 | D37: -13.93333333 | AA37: =($V$8*60*60-W36*60)/3600 -> 5.299730578 | AB37: =(AA37-ROUNDDOWN(AA37,0))*60 -> 17.98383467 | AC37: =(AB37-ROUNDDOWN(AB37,0))*60 -> 59.03008029 | AE37: =($V$10*60*60-W36*60)/3600 -> 10.80417875 | AF37: =(AE37-ROUNDDOWN(AE37,0))*60 -> 48.25072507 | AG37: =(AF37-ROUNDDOWN(AF37,0)) -> 0.2507250715
A38: =BERECHNUNG!A38 -> 6 | B38: =BERECHNUNG!B38 -> -14 | C38: =BERECHNUNG!C38 -> 0 | D38: -14 | AA38: =(AD38/3600) -> 29.33539354 | AB38: =(AA38-ROUNDDOWN(AA38,0))*60 -> 20.12361267 | AC38: =(AB38-ROUNDDOWN(AB38,0))*60 -> 7.41676 | AD38: =($Z$6*3600+Y36*60+Z36) -> 105607.4168
A39: =BERECHNUNG!A39 -> 7 | B39: =BERECHNUNG!B39 -> -14 | C39: =BERECHNUNG!C39 -> 4 | D39: -14.06666667 | V39: X am 0° - Meridian= | W39: =($V$9+((1.1574074074*10^-5)*$Y$13)) -> 6.927078354 | X39: (n-ter Tag) | Y39: MIN | Z39: SEC | AA39: WAHRE ORTSZEIT AM ZIELORT (std:min:sec)
A40: =BERECHNUNG!A40 -> 8 | B40: =BERECHNUNG!B40 -> -14 | C40: =BERECHNUNG!C40 -> 6 | D40: -14.1 | U40: JULI | V40: Y gleitende ZG am 0°-Meridian= | W40: =(0.0043*W39^2-0.2233*W39-3.638) -> -4.978483614 | X40: Y = | Y40: =ROUNDDOWN(W40,0) -> -4 | Z40: =IF(Y40>=0,ROUND(ABS(W40-Y40)*60,0),-ROUND(ABS(W40-Y40)*60,0)) -> -59 | AA40: =IF($V$8>=0,ROUNDDOWN(AA41,0),ROUNDDOWN(AA42*-1,0)) -> 5 | AB40: =IF($V$8>=0,ROUNDDOWN(AB41,0),ROUNDDOWN(AB42,0)) -> 24 | AC40: =IF($V$8>=0,ROUNDDOWN(AC41,0),ROUNDUP(AC42,0)) -> 2 | AD40: 7 | AE40: =ROUNDDOWN(AE41,0) -> 10 | AF40: =ROUNDDOWN(AF41,0) -> 54 | AG40: =ROUND(AG41*60,0) -> 18
A41: =BERECHNUNG!A41 -> 9 | B41: =BERECHNUNG!B41 -> -14 | C41: =BERECHNUNG!C41 -> 8 | D41: -14.13333333 | AA41: =($V$8*60*60-W40*60)/3600 -> 5.400590494 | AB41: =(AA41-ROUNDDOWN(AA41,0))*60 -> 24.03542961 | AC41: =(AB41-ROUNDDOWN(AB41,0))*60 -> 2.125776844 | AE41: =($V$10*60*60-W40*60)/3600 -> 10.90503867 | AF41: =(AE41-ROUNDDOWN(AE41,0))*60 -> 54.30232001 | AG41: =(AF41-ROUNDDOWN(AF41,0)) -> 0.3023200141
A42: =BERECHNUNG!A42 -> 10 | B42: =BERECHNUNG!B42 -> -14 | C42: =BERECHNUNG!C42 -> 10 | D42: -14.16666667 | AA42: =(AD42/3600) -> 29.23456021 | AB42: =(AA42-ROUNDDOWN(AA42,0))*60 -> 14.07361267 | AC42: =(AB42-ROUNDDOWN(AB42,0))*60 -> 4.41676 | AD42: =($Z$6*3600+Y40*60+Z40) -> 105244.4168
A43: =BERECHNUNG!A43 -> 11 | B43: =BERECHNUNG!B43 -> -14 | C43: =BERECHNUNG!C43 -> 10 | D43: -14.16666667 | V43: X am 0° - Meridian= | W43: =($V$9+((1.1574074074*10^-5)*$Y$13)) -> 6.927078354 | X43: (n-ter Tag) | Y43: MIN | Z43: SEC | AA43: WAHRE ORTSZEIT AM ZIELORT (std:min:sec)
A44: =BERECHNUNG!A44 -> 12 | B44: =BERECHNUNG!B44 -> -14 | C44: =BERECHNUNG!C44 -> 10 | D44: -14.16666667 | U44: AUGUST | V44: Y gleitende ZG am 0°-Meridian= | W44: =(0.0043*W43^2+0.067*W43-6.4196) -> -5.749152768 | X44: Y = | Y44: =ROUNDDOWN(W44,0) -> -5 | Z44: =IF(Y44>=0,ROUND(ABS(W44-Y44)*60,0),-ROUND(ABS(W44-Y44)*60,0)) -> -45 | AA44: =IF($V$8>=0,ROUNDDOWN(AA45,0),ROUNDDOWN(AA46*-1,0)) -> 5 | AB44: =IF($V$8>=0,ROUNDDOWN(AB45,0),ROUNDDOWN(AB46,0)) -> 24 | AC44: =IF($V$8>=0,ROUNDDOWN(AC45,0),ROUNDUP(AC46,0)) -> 48 | AD44: 8 | AE44: =ROUNDDOWN(AE45,0) -> 10 | AF44: =ROUNDDOWN(AF45,0) -> 55 | AG44: =ROUND(AG45*60,0) -> 4
A45: =BERECHNUNG!A45 -> 13 | B45: =BERECHNUNG!B45 -> -14 | C45: =BERECHNUNG!C45 -> 9 | D45: -14.15 | AA45: =($V$8*60*60-W44*60)/3600 -> 5.413434979 | AB45: =(AA45-ROUNDDOWN(AA45,0))*60 -> 24.80609877 | AC45: =(AB45-ROUNDDOWN(AB45,0))*60 -> 48.36592607 | AE45: =($V$10*60*60-W44*60)/3600 -> 10.91788315 | AF45: =(AE45-ROUNDDOWN(AE45,0))*60 -> 55.07298917 | AG45: =(AF45-ROUNDDOWN(AF45,0)) -> 0.07298916779
A46: =BERECHNUNG!A46 -> 14 | B46: =BERECHNUNG!B46 -> -14 | C46: =BERECHNUNG!C46 -> 7 | D46: -14.11666667 | AA46: =(AD46/3600) -> 29.22178243 | AB46: =(AA46-ROUNDDOWN(AA46,0))*60 -> 13.306946 | AC46: =(AB46-ROUNDDOWN(AB46,0))*60 -> 18.41676 | AD46: =($Z$6*3600+Y44*60+Z44) -> 105198.4168
A47: =BERECHNUNG!A47 -> 15 | B47: =BERECHNUNG!B47 -> -14 | C47: =BERECHNUNG!C47 -> 5 | D47: -14.08333333 | V47: X am 0° - Meridian= | W47: =($V$9+((1.1574074074*10^-5)*$Y$13)) -> 6.927078354 | X47: (n-ter Tag) | Y47: MIN | Z47: SEC | AA47: WAHRE ORTSZEIT AM ZIELORT (std:min:sec)
A48: =BERECHNUNG!A48 -> 16 | B48: =BERECHNUNG!B48 -> -14 | C48: =BERECHNUNG!C48 -> 2 | D48: -14.03333333 | U48: SEPTEMBER | V48: Y gleitende ZG am 0°-Meridian= | W48: =(0.0001*W47^2+0.3466*W47-0.4511) -> 1.954623799 | X48: Y = | Y48: =ROUNDDOWN(W48,0) -> 1 | Z48: =IF(Y48>=0,ROUND(ABS(W48-Y48)*60,0),-ROUND(ABS(W48-Y48)*60,0)) -> 57 | AA48: =IF($V$8>=0,ROUNDDOWN(AA49,0),ROUNDDOWN(AA50*-1,0)) -> 5 | AB48: =IF($V$8>=0,ROUNDDOWN(AB49,0),ROUNDDOWN(AB50,0)) -> 17 | AC48: =IF($V$8>=0,ROUNDDOWN(AC49,0),ROUNDUP(AC50,0)) -> 6 | AD48: 9 | AE48: =ROUNDDOWN(AE49,0) -> 10 | AF48: =ROUNDDOWN(AF49,0) -> 47 | AG48: =ROUND(AG49*60,0) -> 22
A49: =BERECHNUNG!A49 -> 17 | B49: =BERECHNUNG!B49 -> -13 | C49: =BERECHNUNG!C49 -> 58 | D49: -13.96666667 | AA49: =($V$8*60*60-W48*60)/3600 -> 5.285038703 | AB49: =(AA49-ROUNDDOWN(AA49,0))*60 -> 17.1023222 | AC49: =(AB49-ROUNDDOWN(AB49,0))*60 -> 6.139332056 | AE49: =($V$10*60*60-W48*60)/3600 -> 10.78948688 | AF49: =(AE49-ROUNDDOWN(AE49,0))*60 -> 47.3692126 | AG49: =(AF49-ROUNDDOWN(AF49,0)) -> 0.3692126009
A50: =BERECHNUNG!A50 -> 18 | B50: =BERECHNUNG!B50 -> -13 | C50: =BERECHNUNG!C50 -> 53 | D50: -13.88333333 | AA50: =(AD50/3600) -> 29.35011577 | AB50: =(AA50-ROUNDDOWN(AA50,0))*60 -> 21.006946 | AC50: =(AB50-ROUNDDOWN(AB50,0))*60 -> 0.41676 | AD50: =($Z$6*3600+Y48*60+Z48) -> 105660.4168
A51: =BERECHNUNG!A51 -> 19 | B51: =BERECHNUNG!B51 -> -13 | C51: =BERECHNUNG!C51 -> 48 | D51: -13.8 | V51: X am 0° - Meridian= | W51: =($V$9+((1.1574074074*10^-5)*$Y$13)) -> 6.927078354 | X51: (n-ter Tag) | Y51: MIN | Z51: SEC | AA51: WAHRE ORTSZEIT AM ZIELORT (std:min:sec)
A52: =BERECHNUNG!A52 -> 20 | B52: =BERECHNUNG!B52 -> -13 | C52: =BERECHNUNG!C52 -> 42 | D52: -13.7 | U52: OKTOBER | V52: Y gleitende ZG am 0°-Meridian= | W52: =(-0.0048*W51^2+0.3608*W51+9.8856) -> 12.15456468 | X52: Y = | Y52: =ROUNDDOWN(W52,0) -> 12 | Z52: =IF(Y52>=0,ROUND(ABS(W52-Y52)*60,0),-ROUND(ABS(W52-Y52)*60,0)) -> 9 | AA52: =IF($V$8>=0,ROUNDDOWN(AA53,0),ROUNDDOWN(AA54*-1,0)) -> 5 | AB52: =IF($V$8>=0,ROUNDDOWN(AB53,0),ROUNDDOWN(AB54,0)) -> 6 | AC52: =IF($V$8>=0,ROUNDDOWN(AC53,0),ROUNDUP(AC54,0)) -> 54 | AD52: 10 | AE52: =ROUNDDOWN(AE53,0) -> 10 | AF52: =ROUNDDOWN(AF53,0) -> 37 | AG52: =ROUND(AG53*60,0) -> 10
A53: =BERECHNUNG!A53 -> 21 | B53: =BERECHNUNG!B53 -> -13 | C53: =BERECHNUNG!C53 -> 36 | D53: -13.6 | AA53: =($V$8*60*60-W52*60)/3600 -> 5.115039689 | AB53: =(AA53-ROUNDDOWN(AA53,0))*60 -> 6.902381319 | AC53: =(AB53-ROUNDDOWN(AB53,0))*60 -> 54.14287917 | AE53: =($V$10*60*60-W52*60)/3600 -> 10.61948786 | AF53: =(AE53-ROUNDDOWN(AE53,0))*60 -> 37.16927172 | AG53: =(AF53-ROUNDDOWN(AF53,0)) -> 0.1692717195
A54: =BERECHNUNG!A54 -> 22 | B54: =BERECHNUNG!B54 -> -13 | C54: =BERECHNUNG!C54 -> 29 | D54: -13.48333333 | AA54: =(AD54/3600) -> 29.52011577 | AB54: =(AA54-ROUNDDOWN(AA54,0))*60 -> 31.206946 | AC54: =(AB54-ROUNDDOWN(AB54,0))*60 -> 12.41676 | AD54: =($Z$6*3600+Y52*60+Z52) -> 106272.4168
A55: =BERECHNUNG!A55 -> 23 | B55: =BERECHNUNG!B55 -> -13 | C55: =BERECHNUNG!C55 -> 21 | D55: -13.35 | V55: X am 0° - Meridian= | W55: =($V$9+((1.1574074074*10^-5)*$Y$13)) -> 6.927078354 | X55: (n-ter Tag) | Y55: MIN | Z55: SEC | AA55: WAHRE ORTSZEIT AM ZIELORT (std:min:sec)
A56: =BERECHNUNG!A56 -> 24 | B56: =BERECHNUNG!B56 -> -13 | C56: =BERECHNUNG!C56 -> 12 | D56: -13.2 | U56: NOVEMBER | V56: Y gleitende ZG am 0°-Meridian= | W56: =(-0.0069*W55^2+0.0405*W55+16.386) -> 16.33545421 | X56: Y = | Y56: =ROUNDDOWN(W56,0) -> 16 | Z56: =IF(Y56>=0,ROUND(ABS(W56-Y56)*60,0),-ROUND(ABS(W56-Y56)*60,0)) -> 20 | AA56: =IF($V$8>=0,ROUNDDOWN(AA57,0),ROUNDDOWN(AA58*-1,0)) -> 5 | AB56: =IF($V$8>=0,ROUNDDOWN(AB57,0),ROUNDDOWN(AB58,0)) -> 2 | AC56: =IF($V$8>=0,ROUNDDOWN(AC57,0),ROUNDUP(AC58,0)) -> 43 | AD56: 11 | AE56: =ROUNDDOWN(AE57,0) -> 10 | AF56: =ROUNDDOWN(AF57,0) -> 32 | AG56: =ROUND(AG57*60,0) -> 59
A57: =BERECHNUNG!A57 -> 25 | B57: =BERECHNUNG!B57 -> -13 | C57: =BERECHNUNG!C57 -> 3 | D57: -13.05 | AA57: =($V$8*60*60-W56*60)/3600 -> 5.045358196 | AB57: =(AA57-ROUNDDOWN(AA57,0))*60 -> 2.721491787 | AC57: =(AB57-ROUNDDOWN(AB57,0))*60 -> 43.28950721 | AE57: =($V$10*60*60-W56*60)/3600 -> 10.54980637 | AF57: =(AE57-ROUNDDOWN(AE57,0))*60 -> 32.98838219 | AG57: =(AF57-ROUNDDOWN(AF57,0)) -> 0.9883821869
A58: =BERECHNUNG!A58 -> 26 | B58: =BERECHNUNG!B58 -> -12 | C58: =BERECHNUNG!C58 -> 54 | D58: -12.9 | AA58: =(AD58/3600) -> 29.58983799 | AB58: =(AA58-ROUNDDOWN(AA58,0))*60 -> 35.39027933 | AC58: =(AB58-ROUNDDOWN(AB58,0))*60 -> 23.41676 | AD58: =($Z$6*3600+Y56*60+Z56) -> 106523.4168
A59: =BERECHNUNG!A59 -> 27 | B59: =BERECHNUNG!B59 -> -12 | C59: =BERECHNUNG!C59 -> 43 | D59: -12.71666667 | V59: X am 0° - Meridian= | W59: =($V$9+((1.1574074074*10^-5)*$Y$13)) -> 6.927078354 | X59: (n-ter Tag) | Y59: MIN | Z59: SEC | AA59: WAHRE ORTSZEIT AM ZIELORT (std:min:sec)
A60: =BERECHNUNG!A60 -> 28 | B60: =BERECHNUNG!B60 -> -12 | C60: =BERECHNUNG!C60 -> 33 | D60: -12.55 | U60: DEZEMBER | V60: Y gleitende ZG am 0°-Meridian= | W60: =(-0.0018*W59^2-0.413*W59+11.533) -> 8.585744694 | X60: Y = | Y60: =ROUNDDOWN(W60,0) -> 8 | Z60: =IF(Y60>=0,ROUND(ABS(W60-Y60)*60,0),-ROUND(ABS(W60-Y60)*60,0)) -> 35 | AA60: =IF($V$8>=0,ROUNDDOWN(AA61,0),ROUNDDOWN(AA62*-1,0)) -> 5 | AB60: =IF($V$8>=0,ROUNDDOWN(AB61,0),ROUNDDOWN(AB62,0)) -> 10 | AC60: =IF($V$8>=0,ROUNDDOWN(AC61,0),ROUNDUP(AC62,0)) -> 28 | AD60: 12 | AE60: =ROUNDDOWN(AE61,0) -> 10 | AF60: =ROUNDDOWN(AF61,0) -> 40 | AG60: =ROUND(AG61*60,0) -> 44
A61: =BERECHNUNG!A61 -> März: | D61: März | AA61: =($V$8*60*60-W60*60)/3600 -> 5.174520022 | AB61: =(AA61-ROUNDDOWN(AA61,0))*60 -> 10.47120131 | AC61: =(AB61-ROUNDDOWN(AB61,0))*60 -> 28.27207839 | AE61: =($V$10*60*60-W60*60)/3600 -> 10.6789682 | AF61: =(AE61-ROUNDDOWN(AE61,0))*60 -> 40.73809171 | AG61: =(AF61-ROUNDDOWN(AF61,0)) -> 0.7380917065
A62: =BERECHNUNG!A62 -> 1 | B62: =BERECHNUNG!B62 -> -12 | C62: =BERECHNUNG!C62 -> 21 | D62: =(B62-(C62/60)) -> -12.35 | AA62: =(AD62/3600) -> 29.46067132 | AB62: =(AA62-ROUNDDOWN(AA62,0))*60 -> 27.64027933 | AC62: =(AB62-ROUNDDOWN(AB62,0))*60 -> 38.41676 | AD62: =($Z$6*3600+Y60*60+Z60) -> 106058.4168
A63: =BERECHNUNG!A63 -> 2 | B63: =BERECHNUNG!B63 -> -12 | C63: =BERECHNUNG!C63 -> 10 | D63: -12.16666667
A64: =BERECHNUNG!A64 -> 3 | B64: =BERECHNUNG!B64 -> -11 | C64: =BERECHNUNG!C64 -> 57 | D64: -11.95
A65: =BERECHNUNG!A65 -> 4 | B65: =BERECHNUNG!B65 -> -11 | C65: =BERECHNUNG!C65 -> 44 | D65: -11.73333333
A66: =BERECHNUNG!A66 -> 5 | B66: =BERECHNUNG!B66 -> -11 | C66: =BERECHNUNG!C66 -> 31 | D66: -11.51666667
A67: =BERECHNUNG!A67 -> 6 | B67: =BERECHNUNG!B67 -> -11 | C67: =BERECHNUNG!C67 -> 17 | D67: -11.28333333
A68: =BERECHNUNG!A68 -> 7 | B68: =BERECHNUNG!B68 -> -11 | C68: =BERECHNUNG!C68 -> 3 | D68: -11.05
A69: =BERECHNUNG!A69 -> 8 | B69: =BERECHNUNG!B69 -> -10 | C69: =BERECHNUNG!C69 -> 49 | D69: -10.81666667
A70: =BERECHNUNG!A70 -> 9 | B70: =BERECHNUNG!B70 -> -10 | C70: =BERECHNUNG!C70 -> 34 | D70: -10.56666667
A71: =BERECHNUNG!A71 -> 10 | B71: =BERECHNUNG!B71 -> -10 | C71: =BERECHNUNG!C71 -> 19 | D71: -10.31666667
A72: =BERECHNUNG!A72 -> 11 | B72: =BERECHNUNG!B72 -> -10 | C72: =BERECHNUNG!C72 -> 3 | D72: -10.05
A73: =BERECHNUNG!A73 -> 12 | B73: =BERECHNUNG!B73 -> -9 | C73: =BERECHNUNG!C73 -> 47 | D73: -9.783333333
A74: =BERECHNUNG!A74 -> 13 | B74: =BERECHNUNG!B74 -> -9 | C74: =BERECHNUNG!C74 -> 31 | D74: -9.516666667
A75: =BERECHNUNG!A75 -> 14 | B75: =BERECHNUNG!B75 -> -9 | C75: =BERECHNUNG!C75 -> 15 | D75: -9.25
A76: =BERECHNUNG!A76 -> 15 | B76: =BERECHNUNG!B76 -> -8 | C76: =BERECHNUNG!C76 -> 58 | D76: -8.966666667
A77: =BERECHNUNG!A77 -> 16 | B77: =BERECHNUNG!B77 -> -8 | C77: =BERECHNUNG!C77 -> 41 | D77: -8.683333333
A78: =BERECHNUNG!A78 -> 17 | B78: =BERECHNUNG!B78 -> -8 | C78: =BERECHNUNG!C78 -> 24 | D78: -8.4
A79: =BERECHNUNG!A79 -> 18 | B79: =BERECHNUNG!B79 -> -8 | C79: =BERECHNUNG!C79 -> 7 | D79: -8.116666667
A80: =BERECHNUNG!A80 -> 19 | B80: =BERECHNUNG!B80 -> -7 | C80: =BERECHNUNG!C80 -> 49 | D80: -7.816666667
A81: =BERECHNUNG!A81 -> 20 | B81: =BERECHNUNG!B81 -> -7 | C81: =BERECHNUNG!C81 -> 32 | D81: -7.533333333
A82: =BERECHNUNG!A82 -> 21 | B82: =BERECHNUNG!B82 -> -7 | C82: =BERECHNUNG!C82 -> 14 | D82: -7.233333333
A83: =BERECHNUNG!A83 -> 22 | B83: =BERECHNUNG!B83 -> -6 | C83: =BERECHNUNG!C83 -> 57 | D83: -6.95
A84: =BERECHNUNG!A84 -> 23 | B84: =BERECHNUNG!B84 -> -6 | C84: =BERECHNUNG!C84 -> 39 | D84: -6.65
A85: =BERECHNUNG!A85 -> 24 | B85: =BERECHNUNG!B85 -> -6 | C85: =BERECHNUNG!C85 -> 21 | D85: -6.35
A86: =BERECHNUNG!A86 -> 25 | B86: =BERECHNUNG!B86 -> -6 | C86: =BERECHNUNG!C86 -> 3 | D86: -6.05
A87: =BERECHNUNG!A87 -> 26 | B87: =BERECHNUNG!B87 -> -5 | C87: =BERECHNUNG!C87 -> 45 | D87: -5.75
A88: =BERECHNUNG!A88 -> 27 | B88: =BERECHNUNG!B88 -> -5 | C88: =BERECHNUNG!C88 -> 27 | D88: -5.45
A89: =BERECHNUNG!A89 -> 28 | B89: =BERECHNUNG!B89 -> -5 | C89: =BERECHNUNG!C89 -> 9 | D89: -5.15
A90: =BERECHNUNG!A90 -> 29 | B90: =BERECHNUNG!B90 -> -4 | C90: =BERECHNUNG!C90 -> 50 | D90: -4.833333333
A91: =BERECHNUNG!A91 -> 30 | B91: =BERECHNUNG!B91 -> -4 | C91: =BERECHNUNG!C91 -> 32 | D91: -4.533333333
A92: =BERECHNUNG!A92 -> 31 | B92: =BERECHNUNG!B92 -> -4 | C92: =BERECHNUNG!C92 -> 14 | D92: -4.233333333
A93: =BERECHNUNG!A93 -> April: | D93: April
A94: =BERECHNUNG!A94 -> 1 | B94: =BERECHNUNG!B94 -> -3 | C94: =BERECHNUNG!C94 -> 57 | D94: =(B94-(C94/60)) -> -3.95
A95: =BERECHNUNG!A95 -> 2 | B95: =BERECHNUNG!B95 -> -3 | C95: =BERECHNUNG!C95 -> 39 | D95: -3.65
A96: =BERECHNUNG!A96 -> 3 | B96: =BERECHNUNG!B96 -> -3 | C96: =BERECHNUNG!C96 -> 21 | D96: -3.35
A97: =BERECHNUNG!A97 -> 4 | B97: =BERECHNUNG!B97 -> -3 | C97: =BERECHNUNG!C97 -> 4 | D97: -3.066666667
A98: =BERECHNUNG!A98 -> 5 | B98: =BERECHNUNG!B98 -> -2 | C98: =BERECHNUNG!C98 -> 46 | D98: -2.766666667
A99: =BERECHNUNG!A99 -> 6 | B99: =BERECHNUNG!B99 -> -2 | C99: =BERECHNUNG!C99 -> 29 | D99: -2.483333333
A100: =BERECHNUNG!A100 -> 7 | B100: =BERECHNUNG!B100 -> -2 | C100: =BERECHNUNG!C100 -> 12 | D100: -2.2
A101: =BERECHNUNG!A101 -> 8 | B101: =BERECHNUNG!B101 -> -1 | C101: =BERECHNUNG!C101 -> 55 | D101: -1.916666667
A102: =BERECHNUNG!A102 -> 9 | B102: =BERECHNUNG!B102 -> -1 | C102: =BERECHNUNG!C102 -> 39 | D102: -1.65
A103: =BERECHNUNG!A103 -> 10 | B103: =BERECHNUNG!B103 -> -1 | C103: =BERECHNUNG!C103 -> 22 | D103: -1.366666667
A104: =BERECHNUNG!A104 -> 11 | B104: =BERECHNUNG!B104 -> -1 | C104: =BERECHNUNG!C104 -> 6 | D104: -1.1
A105: =BERECHNUNG!A105 -> 12 | B105: =BERECHNUNG!B105 -> 0 | C105: =BERECHNUNG!C105 -> -51 | D105: 0.85
A106: =BERECHNUNG!A106 -> 13 | B106: =BERECHNUNG!B106 -> 0 | C106: =BERECHNUNG!C106 -> -35 | D106: 0.5833333333
A107: =BERECHNUNG!A107 -> 14 | B107: =BERECHNUNG!B107 -> 0 | C107: =BERECHNUNG!C107 -> -20 | D107: 0.3333333333
A108: =BERECHNUNG!A108 -> 15 | B108: =BERECHNUNG!B108 -> 0 | C108: =BERECHNUNG!C108 -> -6 | D108: 0.1
A109: =BERECHNUNG!A109 -> 16 | B109: =BERECHNUNG!B109 -> 0 | C109: =BERECHNUNG!C109 -> 9 | D109: =(B109+(C109/60)) -> 0.15
A110: =BERECHNUNG!A110 -> 17 | B110: =BERECHNUNG!B110 -> 0 | C110: =BERECHNUNG!C110 -> 22 | D110: 0.3666666667
A111: =BERECHNUNG!A111 -> 18 | B111: =BERECHNUNG!B111 -> 0 | C111: =BERECHNUNG!C111 -> 36 | D111: 0.6
A112: =BERECHNUNG!A112 -> 19 | B112: =BERECHNUNG!B112 -> 0 | C112: =BERECHNUNG!C112 -> 49 | D112: 0.8166666667
A113: =BERECHNUNG!A113 -> 20 | B113: =BERECHNUNG!B113 -> 1 | C113: =BERECHNUNG!C113 -> 2 | D113: 1.033333333
A114: =BERECHNUNG!A114 -> 21 | B114: =BERECHNUNG!B114 -> 1 | C114: =BERECHNUNG!C114 -> 14 | D114: 1.233333333
A115: =BERECHNUNG!A115 -> 22 | B115: =BERECHNUNG!B115 -> 1 | C115: =BERECHNUNG!C115 -> 26 | D115: 1.433333333
A116: =BERECHNUNG!A116 -> 23 | B116: =BERECHNUNG!B116 -> 1 | C116: =BERECHNUNG!C116 -> 37 | D116: 1.616666667
A117: =BERECHNUNG!A117 -> 24 | B117: =BERECHNUNG!B117 -> 1 | C117: =BERECHNUNG!C117 -> 48 | D117: 1.8
A118: =BERECHNUNG!A118 -> 25 | B118: =BERECHNUNG!B118 -> 1 | C118: =BERECHNUNG!C118 -> 59 | D118: 1.983333333
A119: =BERECHNUNG!A119 -> 26 | B119: =BERECHNUNG!B119 -> 2 | C119: =BERECHNUNG!C119 -> 9 | D119: 2.15
A120: =BERECHNUNG!A120 -> 27 | B120: =BERECHNUNG!B120 -> 2 | C120: =BERECHNUNG!C120 -> 18 | D120: 2.3
A121: =BERECHNUNG!A121 -> 28 | B121: =BERECHNUNG!B121 -> 2 | C121: =BERECHNUNG!C121 -> 27 | D121: 2.45
A122: =BERECHNUNG!A122 -> 29 | B122: =BERECHNUNG!B122 -> 2 | C122: =BERECHNUNG!C122 -> 36 | D122: 2.6
A123: =BERECHNUNG!A123 -> 30 | B123: =BERECHNUNG!B123 -> 2 | C123: =BERECHNUNG!C123 -> 44 | D123: 2.733333333
A124: =BERECHNUNG!A124 -> Mai | D124: Mai | E124: Juni | F124: Juli | G124: August
A125: =BERECHNUNG!A125 -> 1 | B125: =BERECHNUNG!B125 -> 2 | C125: =BERECHNUNG!C125 -> 52 | D125: =(B125+(C125/60)) -> 2.866666667 | E125: 2.133333333 | F125: -3.9 | G125: -5.616666667 | I125: GRAFIKEN SIEHE "BERECHNUNG"
A126: =BERECHNUNG!A126 -> 2 | B126: =BERECHNUNG!B126 -> 2 | C126: =BERECHNUNG!C126 -> 59 | D126: 2.983333333 | E126: 1.983333333 | F126: -4.1 | G126: -5.683333333
A127: =BERECHNUNG!A127 -> 3 | B127: =BERECHNUNG!B127 -> 3 | C127: =BERECHNUNG!C127 -> 5 | D127: 3.083333333 | E127: 1.816666667 | F127: -4.283333333 | G127: -5.766666667
A128: =BERECHNUNG!A128 -> 4 | B128: =BERECHNUNG!B128 -> 3 | C128: =BERECHNUNG!C128 -> 11 | D128: 3.183333333 | E128: 1.65 | F128: -4.466666667 | G128: -5.85
A129: =BERECHNUNG!A129 -> 5 | B129: =BERECHNUNG!B129 -> 3 | C129: =BERECHNUNG!C129 -> 17 | D129: 3.283333333 | E129: 1.466666667 | F129: -4.633333333 | G129: -5.95
A130: =BERECHNUNG!A130 -> 6 | B130: =BERECHNUNG!B130 -> 3 | C130: =BERECHNUNG!C130 -> 21 | D130: 3.35 | E130: 1.283333333 | F130: -4.816666667 | G130: -4.066666667
A131: =BERECHNUNG!A131 -> 7 | B131: =BERECHNUNG!B131 -> 3 | C131: =BERECHNUNG!C131 -> 26 | D131: 3.433333333 | E131: 1.1 | F131: -4.966666667 | G131: -4.183333333
A132: =BERECHNUNG!A132 -> 8 | B132: =BERECHNUNG!B132 -> 3 | C132: =BERECHNUNG!C132 -> 29 | D132: 3.483333333 | E132: 0.9166666667 | F132: -5.133333333 | G132: -4.316666667
A133: =BERECHNUNG!A133 -> 9 | B133: =BERECHNUNG!B133 -> 3 | C133: =BERECHNUNG!C133 -> 32 | D133: 3.533333333 | E133: 0.7166666667 | F133: -5.283333333 | G133: -4.45
A134: =BERECHNUNG!A134 -> 10 | B134: =BERECHNUNG!B134 -> 3 | C134: =BERECHNUNG!C134 -> 35 | D134: 3.583333333 | E134: 0.5166666667 | F134: -5.416666667 | G134: -4.6
A135: =BERECHNUNG!A135 -> 11 | B135: =BERECHNUNG!B135 -> 3 | C135: =BERECHNUNG!C135 -> 37 | D135: 3.616666667 | E135: 0.3166666667 | F135: -5.55 | G135: -4.75
A136: =BERECHNUNG!A136 -> 12 | B136: =BERECHNUNG!B136 -> 3 | C136: =BERECHNUNG!C136 -> 38 | D136: 3.633333333 | E136: 0.1166666667 | F136: -5.683333333 | G136: -4.933333333
A137: =BERECHNUNG!A137 -> 13 | B137: =BERECHNUNG!B137 -> 3 | C137: =BERECHNUNG!C137 -> 39 | D137: 3.65 | E137: -0.08333333333 | F137: -5.8 | G137: -3.1
A138: =BERECHNUNG!A138 -> 14 | B138: =BERECHNUNG!B138 -> 3 | C138: =BERECHNUNG!C138 -> 39 | D138: 3.65 | E138: -0.3 | F138: -5.916666667 | G138: -3.283333333
A139: =BERECHNUNG!A139 -> 15 | B139: =BERECHNUNG!B139 -> 3 | C139: =BERECHNUNG!C139 -> 39 | D139: 3.65 | E139: -0.5166666667 | F139: -6.016666667 | G139: -3.483333333
A140: =BERECHNUNG!A140 -> 16 | B140: =BERECHNUNG!B140 -> 3 | C140: =BERECHNUNG!C140 -> 38 | D140: 3.633333333 | E140: -0.7333333333 | F140: -5.116666667 | G140: -3.683333333
A141: =BERECHNUNG!A141 -> 17 | B141: =BERECHNUNG!B141 -> 3 | C141: =BERECHNUNG!C141 -> 36 | D141: 3.6 | E141: -0.9333333333 | F141: -6.2 | G141: -3.9
A142: =BERECHNUNG!A142 -> 18 | B142: =BERECHNUNG!B142 -> 3 | C142: =BERECHNUNG!C142 -> 33 | D142: 3.55 | E142: -1.15 | F142: -6.266666667 | G142: -2.116666667
A143: =BERECHNUNG!A143 -> 19 | B143: =BERECHNUNG!B143 -> 3 | C143: =BERECHNUNG!C143 -> 31 | D143: 3.516666667 | E143: -1.366666667 | F143: -6.333333333 | G143: -2.35
A144: =BERECHNUNG!A144 -> 20 | B144: =BERECHNUNG!B144 -> 3 | C144: =BERECHNUNG!C144 -> 28 | D144: 3.466666667 | E144: -1.583333333 | F144: -6.4 | G144: -2.583333333
A145: =BERECHNUNG!A145 -> 21 | B145: =BERECHNUNG!B145 -> 3 | C145: =BERECHNUNG!C145 -> 24 | D145: 3.4 | E145: -1.816666667 | F145: -6.45 | G145: -2.833333333
A146: =BERECHNUNG!A146 -> 22 | B146: =BERECHNUNG!B146 -> 3 | C146: =BERECHNUNG!C146 -> 20 | D146: 3.333333333 | E146: -2.033333333 | F146: -6.5 | G146: -1.083333333
A147: =BERECHNUNG!A147 -> 23 | B147: =BERECHNUNG!B147 -> 3 | C147: =BERECHNUNG!C147 -> 15 | D147: 3.25 | E147: -2.25 | F147: -6.533333333 | G147: -1.333333333
A148: =BERECHNUNG!A148 -> 24 | B148: =BERECHNUNG!B148 -> 3 | C148: =BERECHNUNG!C148 -> 10 | D148: 3.166666667 | E148: -2.466666667 | F148: -6.55 | G148: -1.6
A149: =BERECHNUNG!A149 -> 25 | B149: =BERECHNUNG!B149 -> 3 | C149: =BERECHNUNG!C149 -> 4 | D149: 3.066666667 | E149: -2.666666667 | F149: -6.566666667 | G149: -1.883333333
A150: =BERECHNUNG!A150 -> 26 | B150: =BERECHNUNG!B150 -> 2 | C150: =BERECHNUNG!C150 -> 58 | D150: 2.966666667 | E150: -2.883333333 | F150: -6.566666667 | G150: -0.15
A151: =BERECHNUNG!A151 -> 27 | B151: =BERECHNUNG!B151 -> 2 | C151: =BERECHNUNG!C151 -> 51 | D151: 2.85 | E151: -3.1 | F151: -6.566666667 | G151: -0.4333333333
A152: =BERECHNUNG!A152 -> 28 | B152: =BERECHNUNG!B152 -> 2 | C152: =BERECHNUNG!C152 -> 44 | D152: 2.733333333 | E152: -3.3 | F152: -6.55 | G152: -0.7333333333
A153: =BERECHNUNG!A153 -> 29 | B153: =BERECHNUNG!B153 -> 2 | C153: =BERECHNUNG!C153 -> 36 | D153: 2.6 | E153: -3.5 | F153: -6.516666667 | G153: -0.9666666667
A154: =BERECHNUNG!A154 -> 30 | B154: =BERECHNUNG!B154 -> 2 | C154: =BERECHNUNG!C154 -> 28 | D154: 2.466666667 | E154: -3.7 | F154: -6.483333333 | G154: -0.6666666667
A155: =BERECHNUNG!A155 -> 31 | B155: =BERECHNUNG!B155 -> 2 | C155: =BERECHNUNG!C155 -> 20 | D155: 2.333333333 | F155: -6.433333333 | G155: -0.35
A156: =BERECHNUNG!A156 -> Juni | D156: Juni
A157: =BERECHNUNG!A157 -> 1 | B157: =BERECHNUNG!B157 -> 2 | C157: =BERECHNUNG!C157 -> 11 | D157: =(B157+(C157/60)) -> 2.183333333
A158: =BERECHNUNG!A158 -> 2 | B158: =BERECHNUNG!B158 -> 2 | C158: =BERECHNUNG!C158 -> 2 | D158: 2.033333333
A159: =BERECHNUNG!A159 -> 3 | B159: =BERECHNUNG!B159 -> 1 | C159: =BERECHNUNG!C159 -> 52 | D159: 1.866666667
A160: =BERECHNUNG!A160 -> 4 | B160: =BERECHNUNG!B160 -> 1 | C160: =BERECHNUNG!C160 -> 42 | D160: 1.7
A161: =BERECHNUNG!A161 -> 5 | B161: =BERECHNUNG!B161 -> 1 | C161: =BERECHNUNG!C161 -> 32 | D161: 1.533333333
A162: =BERECHNUNG!A162 -> 6 | B162: =BERECHNUNG!B162 -> 1 | C162: =BERECHNUNG!C162 -> 21 | D162: 1.35
A163: =BERECHNUNG!A163 -> 7 | B163: =BERECHNUNG!B163 -> 1 | C163: =BERECHNUNG!C163 -> 10 | D163: 1.166666667
A164: =BERECHNUNG!A164 -> 8 | B164: =BERECHNUNG!B164 -> 0 | C164: =BERECHNUNG!C164 -> 59 | D164: 0.9833333333
A165: =BERECHNUNG!A165 -> 9 | B165: =BERECHNUNG!B165 -> 0 | C165: =BERECHNUNG!C165 -> 47 | D165: 0.7833333333
A166: =BERECHNUNG!A166 -> 10 | B166: =BERECHNUNG!B166 -> 0 | C166: =BERECHNUNG!C166 -> 35 | D166: 0.5833333333
A167: =BERECHNUNG!A167 -> 11 | B167: =BERECHNUNG!B167 -> 0 | C167: =BERECHNUNG!C167 -> 23 | D167: 0.3833333333
A168: =BERECHNUNG!A168 -> 12 | B168: =BERECHNUNG!B168 -> 0 | C168: =BERECHNUNG!C168 -> 11 | D168: 0.1833333333
A169: =BERECHNUNG!A169 -> 13 | B169: =BERECHNUNG!B169 -> 0 | C169: =BERECHNUNG!C169 -> -2 | D169: =-(B169-(C169/60)) -> -0.03333333333
A170: =BERECHNUNG!A170 -> 14 | B170: =BERECHNUNG!B170 -> 0 | C170: =BERECHNUNG!C170 -> -14 | D170: =-(B170-(C170/60)) -> -0.2333333333
A171: =BERECHNUNG!A171 -> 15 | B171: =BERECHNUNG!B171 -> 0 | C171: =BERECHNUNG!C171 -> -27 | D171: =-(B171-(C171/60)) -> -0.45
A172: =BERECHNUNG!A172 -> 16 | B172: =BERECHNUNG!B172 -> 0 | C172: =BERECHNUNG!C172 -> -40 | D172: =-(B172-(C172/60)) -> -0.6666666667
A173: =BERECHNUNG!A173 -> 17 | B173: =BERECHNUNG!B173 -> 0 | C173: =BERECHNUNG!C173 -> -53 | D173: =-(B173-(C173/60)) -> -0.8833333333
A174: =BERECHNUNG!A174 -> 18 | B174: =BERECHNUNG!B174 -> -1 | C174: =BERECHNUNG!C174 -> 6 | D174: =(B174-(C174/60)) -> -1.1
A175: =BERECHNUNG!A175 -> 19 | B175: =BERECHNUNG!B175 -> -1 | C175: =BERECHNUNG!C175 -> 20 | D175: -1.333333333
A176: =BERECHNUNG!A176 -> 20 | B176: =BERECHNUNG!B176 -> -1 | C176: =BERECHNUNG!C176 -> 33 | D176: -1.55
A177: =BERECHNUNG!A177 -> 21 | B177: =BERECHNUNG!B177 -> -1 | C177: =BERECHNUNG!C177 -> 46 | D177: -1.766666667
A178: =BERECHNUNG!A178 -> 22 | B178: =BERECHNUNG!B178 -> -1 | C178: =BERECHNUNG!C178 -> 59 | D178: -1.983333333
A179: =BERECHNUNG!A179 -> 23 | B179: =BERECHNUNG!B179 -> -2 | C179: =BERECHNUNG!C179 -> 12 | D179: -2.2
A180: =BERECHNUNG!A180 -> 24 | B180: =BERECHNUNG!B180 -> -2 | C180: =BERECHNUNG!C180 -> 25 | D180: -2.416666667
A181: =BERECHNUNG!A181 -> 25 | B181: =BERECHNUNG!B181 -> -2 | C181: =BERECHNUNG!C181 -> 38 | D181: -2.633333333
A182: =BERECHNUNG!A182 -> 26 | B182: =BERECHNUNG!B182 -> -2 | C182: =BERECHNUNG!C182 -> 51 | D182: -2.85
A183: =BERECHNUNG!A183 -> 27 | B183: =BERECHNUNG!B183 -> -3 | C183: =BERECHNUNG!C183 -> 3 | D183: -3.05
A184: =BERECHNUNG!A184 -> 28 | B184: =BERECHNUNG!B184 -> -3 | C184: =BERECHNUNG!C184 -> 16 | D184: -3.266666667
A185: =BERECHNUNG!A185 -> 29 | B185: =BERECHNUNG!B185 -> -3 | C185: =BERECHNUNG!C185 -> 28 | D185: -3.466666667
A186: =BERECHNUNG!A186 -> 30 | B186: =BERECHNUNG!B186 -> -3 | C186: =BERECHNUNG!C186 -> 40 | D186: -3.666666667
A187: =BERECHNUNG!A187 -> Juli | D187: Juli
A188: =BERECHNUNG!A188 -> 1 | B188: =BERECHNUNG!B188 -> -3 | C188: =BERECHNUNG!C188 -> 51 | D188: =(B188-(C188/60)) -> -3.85
A189: =BERECHNUNG!A189 -> 2 | B189: =BERECHNUNG!B189 -> -4 | C189: =BERECHNUNG!C189 -> 3 | D189: =(B189-(C189/60)) -> -4.05
A190: =BERECHNUNG!A190 -> 3 | B190: =BERECHNUNG!B190 -> -4 | C190: =BERECHNUNG!C190 -> 14 | D190: -4.233333333
A191: =BERECHNUNG!A191 -> 4 | B191: =BERECHNUNG!B191 -> -4 | C191: =BERECHNUNG!C191 -> 25 | D191: -4.416666667
A192: =BERECHNUNG!A192 -> 5 | B192: =BERECHNUNG!B192 -> -4 | C192: =BERECHNUNG!C192 -> 35 | D192: -4.583333333
A193: =BERECHNUNG!A193 -> 6 | B193: =BERECHNUNG!B193 -> -4 | C193: =BERECHNUNG!C193 -> 45 | D193: -4.75
A194: =BERECHNUNG!A194 -> 7 | B194: =BERECHNUNG!B194 -> -4 | C194: =BERECHNUNG!C194 -> 55 | D194: -4.916666667
A195: =BERECHNUNG!A195 -> 8 | B195: =BERECHNUNG!B195 -> -5 | C195: =BERECHNUNG!C195 -> 4 | D195: -5.066666667
A196: =BERECHNUNG!A196 -> 9 | B196: =BERECHNUNG!B196 -> -5 | C196: =BERECHNUNG!C196 -> 14 | D196: -5.233333333
A197: =BERECHNUNG!A197 -> 10 | B197: =BERECHNUNG!B197 -> -5 | C197: =BERECHNUNG!C197 -> 22 | D197: -5.366666667
A198: =BERECHNUNG!A198 -> 11 | B198: =BERECHNUNG!B198 -> -5 | C198: =BERECHNUNG!C198 -> 31 | D198: -5.516666667
A199: =BERECHNUNG!A199 -> 12 | B199: =BERECHNUNG!B199 -> -5 | C199: =BERECHNUNG!C199 -> 38 | D199: -5.633333333
A200: =BERECHNUNG!A200 -> 13 | B200: =BERECHNUNG!B200 -> -5 | C200: =BERECHNUNG!C200 -> 46 | D200: -5.766666667
... 177 more rows

Sheet STARTE DIE UHR! (hidden)
A1: Uhrzeit | B1: =NOW() -> 45044.69692
A2: Stunde | B2: =HOUR(B1) -> 16 | K2: STUNDEN | L2: 3 | N2: =IF(B2>12,B2-12+B3/60+B4/3600,B2+B3/60+B4/3600) -> 4.726111111
A3: Minute | B3: =MINUTE(B1) -> 43 | L3: 9 | N3: =(12-N2) -> 7.273888889
A4: Sekunde | B4: =SECOND(B1) -> 34 | K4: MINUTEN | N4: =(B3+B4/60) -> 43.56666667
N5: =(60-N4) -> 16.43333333
K6: SEKUNDEN | N6: =(B4) -> 34
N7: =(60-N6) -> 26
A8: Datum | B8: =TODAY() -> 2023-04-28
A9: Jahr | B9: =YEAR(B8) -> 2023
A10: Monat | B10: =MONTH(B8) -> 4
A11: Tag | B11: =DAY(B8) -> 28
A12: Wochentag 1 | B12: =B8 -> 2023-04-28
A13: Wochentag 2 | B13: =B8 -> 2023-04-28
A17: Ein Klick auf den Start-Button startet die laufende Ausgabe der aktuellen Uhrzeit sowie des aktuellen Datums mit den entsprechenden
A18: Teilinformationen wie Stunde, Minute, Sekunde, Jahr, Monat etc.
B19: =$B$1 -> 45044.69692
A20: Mit Klick auf den Button Stopp wird die Akualisierung wieder beendet.

Sheet BERECHNUNG (hidden)
A1: 1 | B1: -3 | C1: 24 | D1: =(C1/60) -> 0.4 | F1: Januar | G1: Februar | H1: März | I1: April
A2: 2 | B2: -3 | C2: 53 | D2: 0.8833333333 | E2: 1 | F2: =(B1-D1) -> -3.4 | G2: -13.53333333 | H2: -12.31666667 | I2: -3.95 | V2: std | W2: min | X2: sec | Y2: Summe sec
A3: 3 | B3: -4 | C3: 20 | D3: 0.3333333333 | E3: 2 | F3: -3.883333333 | G3: -13.66666667 | H3: -12.11666667 | I3: -3.65 | U3: ARMBAND - UHRZEIT (mein Standort) | V3: ='EINGABEN UND AUSDRUCK'!$D$8 -> 14 | W3: ='EINGABEN UND AUSDRUCK'!$E$8 -> 43 | X3: ='EINGABEN UND AUSDRUCK'!$F$8 -> 34 | Y3: =(3600*V3+60*W3+X3) -> 53014
A4: 4 | B4: -4 | C4: 48 | D4: 0.8 | E4: 3 | F4: -4.333333333 | G4: -13.78333333 | H4: -11.91666667 | I4: -3.366666667 | U4: (berichtigt auf UTC; CH / MEZ: Sommer -2, Winter - 1) | X4: Längngrad - Zuschalag | Y4: =(V5*4*60) -> 2059.430184 | Z4: Wenn V8 = negativ, dann 24 + (Y6/3600)
A5: 5 | B5: -5 | C5: 15 | D5: 0.25 | E5: 4 | F5: -4.8 | G5: -13.86666667 | H5: -11.7 | I5: -3.083333333 | U5: LÄNGENGRAD (mein Standort) | V5: ='EINGABEN UND AUSDRUCK'!$D$11 -> 8.5809591 | X5: Summe am Standort | Y5: =(Y3+Y4) -> 55073.43018 | Z5: ↓
A6: 6 | B6: -5 | C6: 41 | D6: 0.6833333333 | E6: 5 | F6: -5.25 | G6: -13.96666667 | H6: -11.48333333 | I6: -2.8 | U6: (z.B. Google Maps) | X6: Summe am Zielort | Y6: =(Y5+((V7-V5)*4*60)+((0)*0)) -> 35257.41676 | Z6: =(24+(Y6/3600)) -> 33.79372688
A7: 7 | B7: -6 | C7: 7 | D7: 0.1166666667 | E7: 6 | F7: -5.683333333 | G7: -14.03333333 | H7: -11.25 | I7: -2.5 | U7: LÄNGENGRAD (Zielort) | V7: ='EINGABEN UND AUSDRUCK'!$D$14 -> -73.9857635 | Y7: ='EINGABEN UND AUSDRUCK'!$E$14 -> NEW YORK EMP.ST. BUILDING
A8: 8 | B8: -6 | C8: 33 | D8: 0.55 | E8: 7 | F8: -6.116666667 | G8: -14.1 | H8: -11.01666667 | I8: -2.216666667 | U8: (z.B. Google Maps) MOZ am Zielort | V8: =(Y6/3600) -> 9.793726878 | W8: =IF(V8>=0,(V8-V13),1+(V8-ROUNDDOWN(V8,0))) -> 0.7937268778 | X8: =(W8*60) -> 47.62361267 | Y8: Zerlegung
A9: 9 | B9: -6 | C9: 58 | D9: 0.9666666667 | E9: 8 | F9: -6.55 | G9: -14.13333333 | H9: -10.76666667 | I9: -1.95 | U9: "n - ter" - TAG DES MONATS (mein Standort) | V9: ='STARTE DIE UHR!'!$B$11 -> 28 | W9: JAHRZAHL (-DEZIMALE) DER ZEITGLEICHUNGS-TABELLE | Y9: 23
A10: 10 | B10: -7 | C10: 22 | D10: 0.3666666667 | E10: 9 | F10: -6.966666667 | G10: -14.16666667 | H10: -10.53333333 | I10: -1.683333333 | U10: MOZ am Standort | V10: =(Y5/3600) -> 15.29817505 | W10: =V10-ROUNDDOWN(V10,0) -> 0.2981750511 | X10: =(W10*60) -> 17.89050307
A11: 11 | B11: -7 | C11: 46 | D11: 0.7666666667 | E11: 10 | F11: -7.366666667 | G11: -14.18333333 | H11: -10.26666667 | I11: -1.4 | V11: MITTLERE ORTSZEIT AM ZIELORT (MOZ) | Y11: Summendiff. sec für
A12: 12 | B12: -8 | C12: 9 | D12: 0.15 | E12: 11 | F12: -7.766666667 | G12: -14.2 | H12: -10.01666667 | I12: -1.15 | V12: std | W12: min | X12: sec | Y12: Zeitgleichung "vor/nach" 12:00
A13: 13 | B13: -8 | C13: 32 | D13: 0.5333333333 | E13: 12 | F13: -8.15 | G13: -14.18333333 | H13: -9.75 | I13: -0.8833333333 | V13: =IF($V$8>=0,ROUNDDOWN($V$8,0),ROUNDDOWN(-1*$V$14,0)) -> 9 | W13: =ROUNDDOWN(IF($V$8>=0,ROUNDDOWN($X$8,0),W14*60),0) -> 47 | X13: =IF(V8>=0,ROUND((X8-W13)*60,0),ROUND(X14*60,0)) -> 37 | Y13: =((V17-12)*60*60+W17*60+X17)-((V5/15)*60*60) -> 9813.569816
A14: 14 | B14: -8 | C14: 54 | D14: 0.9 | E14: 13 | F14: -8.533333333 | G14: -14.16666667 | H14: -9.483333333 | I14: -0.6333333333 | V14: =$Z$6 -> 33.79372688 | W14: =($V$14-ROUNDDOWN($V$14,0)) -> 0.7937268778 | X14: =(W14*60-W13) -> 0.6236126667 | Y14: GEMESSEN AM 0° - MERIDIAN
A15: 15 | B15: -9 | C15: 16 | D15: 0.2666666667 | E15: 14 | F15: -8.9 | G15: -14.13333333 | H15: -9.2 | I15: -0.3833333333 | V15: X am 0° - Meridian= | W15: =($V$9+((1.1574074074*10^-5)*$Y$13)) -> 28.11358298 | X15: (n-ter Tag) | Y15: MIN | Z15: SEC | AA15: WAHRE ORTSZEIT AM ZIELORT (WOZ) (std:min:sec) | AD15: Monat | AE15: WAHRE ORTSZEIT AM STANDORT
A16: 16 | B16: -9 | C16: 37 | D16: 0.6166666667 | E16: 15 | F16: -9.266666667 | G16: -14.08333333 | H16: -8.916666667 | I16: -0.1333333333 | U16: JANUAR | V16: Y gleitende ZG am 0°-Meridian= | W16: =(0.0055*W15^2-0.5116*W15-2.837) -> -12.87285454 | X16: Y = | Y16: =ROUNDDOWN(W16,0) -> -12 | Z16: =IF(Y16>=0,ROUND(ABS(W16-Y16)*60,0),-ROUND(ABS(W16-Y16)*60,0)) -> -52 | AA16: =IF($V$8>=0,ROUNDDOWN(AA17,0),ROUNDDOWN(AA18*-1,0)) -> 10 | AB16: =IF($V$8>=0,ROUNDDOWN(AB17,0),ROUNDDOWN(AB18,0)) -> 0 | AC16: =IF($V$8>=0,ROUNDDOWN(AC17,0),ROUNDUP(AC18,0)) -> 29 | AD16: 1 | AE16: =ROUNDDOWN(AE17,0) -> 15 | AF16: =ROUNDDOWN(AF17,0) -> 30 | AG16: =ROUND(AG17*60,0) -> 46
A17: 17 | B17: -9 | C17: 57 | D17: 0.95 | E17: 16 | F17: -9.616666667 | G17: -14.03333333 | H17: -8.633333333 | I17: 0.08333333333 | U17: Hilfszeile: MOZ am Standort (std:min:sec) | V17: =ROUNDDOWN($V$10,0) -> 15 | W17: =ROUNDDOWN($X$10,0) -> 17 | X17: =ROUND((X10-W17)*60,0) -> 53 | AA17: =($V$8*60*60-W16*60)/3600 -> 10.00827445 | AB17: =(AA17-ROUNDDOWN(AA17,0))*60 -> 0.4964672062 | AC17: =(AB17-ROUNDDOWN(AB17,0))*60 -> 29.78803237 | AE17: =($V$10*60*60-W16*60)/3600 -> 15.51272263 | AF17: =(AE17-ROUNDDOWN(AE17,0))*60 -> 30.76335761 | AG17: =(AF17-ROUNDDOWN(AF17,0)) -> 0.7633576062
A18: 18 | B18: -10 | C18: 17 | D18: 0.2833333333 | E18: 17 | F18: -9.95 | G18: -13.96666667 | H18: -8.35 | I18: 0.3166666667 | AA18: =(AD18/3600) -> 33.57928243 | AB18: =(AA18-ROUNDDOWN(AA18,0))*60 -> 34.756946 | AC18: =(AB18-ROUNDDOWN(AB18,0))*60 -> 45.41676 | AD18: =($Z$6*3600+Y16*60+Z16) -> 120885.4168
A19: 19 | B19: -10 | C19: 36 | D19: 0.6 | E19: 18 | F19: -10.28333333 | G19: -13.88333333 | H19: -8.066666667 | I19: 0.55 | V19: X am 0° - Meridian= | W19: =($V$9+((1.1574074074*10^-5)*$Y$13)) -> 28.11358298 | X19: (n-ter Tag) | Y19: MIN | Z19: SEC | AA19: WAHRE ORTSZEIT AM ZIELORT (std:min:sec)
A20: 20 | B20: -10 | C20: 54 | D20: 0.9 | E20: 19 | F20: -10.6 | G20: -13.78333333 | H20: -7.766666667 | I20: 0.7666666667 | U20: FEBRUAR | V20: Y gleitende ZG am 0°-Meridian= | W20: =(0.006*W19^2-0.1334*W19-13.438) -> -12.44611068 | X20: Y = | Y20: =ROUNDDOWN(W20,0) -> -12 | Z20: =IF(Y20>=0,ROUND(ABS(W20-Y20)*60,0),-ROUND(ABS(W20-Y20)*60,0)) -> -27 | AA20: =IF($V$8>=0,ROUNDDOWN(AA21,0),ROUNDDOWN(AA22*-1,0)) -> 10 | AB20: =IF($V$8>=0,ROUNDDOWN(AB21,0),ROUNDDOWN(AB22,0)) -> 0 | AC20: =IF($V$8>=0,ROUNDDOWN(AC21,0),ROUNDUP(AC22,0)) -> 4 | AD20: 2 | AE20: =ROUNDDOWN(AE21,0) -> 15 | AF20: =ROUNDDOWN(AF21,0) -> 30 | AG20: =ROUND(AG21*60,0) -> 20
A21: 21 | B21: -11 | C21: 11 | D21: 0.1833333333 | E21: 20 | F21: -10.9 | G21: -13.68333333 | H21: -7.466666667 | I21: 0.9833333333 | AA21: =($V$8*60*60-W20*60)/3600 -> 10.00116206 | AB21: =(AA21-ROUNDDOWN(AA21,0))*60 -> 0.06972334755 | AC21: =(AB21-ROUNDDOWN(AB21,0))*60 -> 4.183400853 | AE21: =($V$10*60*60-W20*60)/3600 -> 15.50561023 | AF21: =(AE21-ROUNDDOWN(AE21,0))*60 -> 30.33661375 | AG21: =(AF21-ROUNDDOWN(AF21,0)) -> 0.3366137475
A22: 22 | B22: -11 | C22: 28 | D22: 0.4666666667 | E22: 21 | F22: -11.18333333 | G22: -13.56666667 | H22: -7.166666667 | I22: 1.183333333 | AA22: =(AD22/3600) -> 33.58622688 | AB22: =(AA22-ROUNDDOWN(AA22,0))*60 -> 35.17361267 | AC22: =(AB22-ROUNDDOWN(AB22,0))*60 -> 10.41676 | AD22: =($Z$6*3600+Y20*60+Z20) -> 120910.4168
A23: 23 | B23: -11 | C23: 44 | D23: 0.7333333333 | E23: 22 | F23: -11.46666667 | G23: -13.45 | H23: -6.883333333 | I23: 1.383333333 | V23: X am 0° - Meridian= | W23: =($V$9+((1.1574074074*10^-5)*$Y$13)) -> 28.11358298 | X23: (n-ter Tag) | Y23: MIN | Z23: SEC | AA23: WAHRE ORTSZEIT AM ZIELORT (std:min:sec)
A24: 24 | B24: -11 | C24: 59 | D24: 0.9833333333 | E24: 23 | F24: -11.73333333 | G24: -13.31666667 | H24: -6.583333333 | I24: 1.566666667 | U24: MÄRZ | V24: Y gleitende ZG am 0°-Meridian= | W24: =(0.0018*W23^2+0.2202*W23-12.611) -> -4.99771664 | X24: Y = | Y24: =ROUNDDOWN(W24,0) -> -4 | Z24: =IF(Y24>=0,ROUND(ABS(W24-Y24)*60,0),-ROUND(ABS(W24-Y24)*60,0)) -> -60 | AA24: =IF($V$8>=0,ROUNDDOWN(AA25,0),ROUNDDOWN(AA26*-1,0)) -> 9 | AB24: =IF($V$8>=0,ROUNDDOWN(AB25,0),ROUNDDOWN(AB26,0)) -> 52 | AC24: =IF($V$8>=0,ROUNDDOWN(AC25,0),ROUNDUP(AC26,0)) -> 37 | AD24: 3 | AE24: =ROUNDDOWN(AE25,0) -> 15 | AF24: =ROUNDDOWN(AF25,0) -> 22 | AG24: =ROUND(AG25*60,0) -> 53
A25: 25 | B25: -12 | C25: 13 | D25: 0.2166666667 | E25: 24 | F25: -11.98333333 | G25: -13.16666667 | H25: -6.266666667 | I25: 1.75 | AA25: =($V$8*60*60-W24*60)/3600 -> 9.877022155 | AB25: =(AA25-ROUNDDOWN(AA25,0))*60 -> 52.62132931 | AC25: =(AB25-ROUNDDOWN(AB25,0))*60 -> 37.27975841 | AE25: =($V$10*60*60-W24*60)/3600 -> 15.38147033 | AF25: =(AE25-ROUNDDOWN(AE25,0))*60 -> 22.88821971 | AG25: =(AF25-ROUNDDOWN(AF25,0)) -> 0.8882197068
A26: 26 | B26: -12 | C26: 26 | D26: 0.4333333333 | E26: 25 | F26: -12.21666667 | G26: -13.01666667 | H26: -5.966666667 | I26: 1.916666667 | AA26: =(AD26/3600) -> 33.71039354 | AB26: =(AA26-ROUNDDOWN(AA26,0))*60 -> 42.62361267 | AC26: =(AB26-ROUNDDOWN(AB26,0))*60 -> 37.41676 | AD26: =($Z$6*3600+Y24*60+Z24) -> 121357.4168
A27: 27 | B27: -12 | C27: 39 | D27: 0.65 | E27: 26 | F27: -12.43333333 | G27: -12.85 | H27: -5.666666667 | I27: 2.1 | V27: X am 0° - Meridian= | W27: =($V$9+((1.1574074074*10^-5)*$Y$13)) -> 28.11358298 | X27: (n-ter Tag) | Y27: MIN | Z27: SEC | AA27: WAHRE ORTSZEIT AM ZIELORT (std:min:sec)
A28: 28 | B28: -12 | C28: 51 | D28: 0.85 | E28: 27 | F28: -12.65 | G28: -12.68333333 | H28: -5.366666667 | I28: 2.25 | U28: APRIL | V28: Y gleitende ZG am 0°-Meridian= | W28: =(-0.0029*W27^2+0.3223*W27-4.3157) -> 2.453224506 | X28: Y = | Y28: =ROUNDDOWN(W28,0) -> 2 | Z28: =IF(Y28>=0,ROUND(ABS(W28-Y28)*60,0),-ROUND(ABS(W28-Y28)*60,0)) -> 27 | AA28: =IF($V$8>=0,ROUNDDOWN(AA29,0),ROUNDDOWN(AA30*-1,0)) -> 9 | AB28: =IF($V$8>=0,ROUNDDOWN(AB29,0),ROUNDDOWN(AB30,0)) -> 45 | AC28: =IF($V$8>=0,ROUNDDOWN(AC29,0),ROUNDUP(AC30,0)) -> 10 | AD28: 4 | AE28: =ROUNDDOWN(AE29,0) -> 15 | AF28: =ROUNDDOWN(AF29,0) -> 15 | AG28: =ROUND(AG29*60,0) -> 26
A29: 29 | B29: -13 | C29: 2 | D29: 0.03333333333 | E29: 28 | F29: -12.85 | G29: -12.5 | H29: -5.066666667 | I29: 2.4 | AA29: =($V$8*60*60-W28*60)/3600 -> 9.752839803 | AB29: =(AA29-ROUNDDOWN(AA29,0))*60 -> 45.17038816 | AC29: =(AB29-ROUNDDOWN(AB29,0))*60 -> 10.22328964 | AE29: =($V$10*60*60-W28*60)/3600 -> 15.25728798 | AF29: =(AE29-ROUNDDOWN(AE29,0))*60 -> 15.43727856 | AG29: =(AF29-ROUNDDOWN(AF29,0)) -> 0.4372785607
A30: 30 | B30: -13 | C30: 12 | D30: 0.2 | E30: 29 | F30: -13.03333333 | H30: -4.766666667 | I30: 2.55 | AA30: =(AD30/3600) -> 33.83456021 | AB30: =(AA30-ROUNDDOWN(AA30,0))*60 -> 50.07361267 | AC30: =(AB30-ROUNDDOWN(AB30,0))*60 -> 4.41676 | AD30: =($Z$6*3600+Y28*60+Z28) -> 121804.4168
A31: 31 | B31: -13 | C31: 21 | D31: 0.35 | E31: 30 | F31: -13.2 | H31: -4.466666667 | I31: 2.666666667 | V31: X am 0° - Meridian= | W31: =($V$9+((1.1574074074*10^-5)*$Y$13)) -> 28.11358298 | X31: (n-ter Tag) | Y31: MIN | Z31: SEC | AA31: WAHRE ORTSZEIT AM ZIELORT (std:min:sec)
A32: Februar | D32: Februar | E32: 31 | F32: -13.35 | H32: -4.166666667 | U32: MAI | V32: Y gleitende ZG am 0°-Meridian= | W32: =(-0.0046*W31^2+0.12777*W31+2.7528) -> 2.709154176 | X32: Y = | Y32: =ROUNDDOWN(W32,0) -> 2 | Z32: =IF(Y32>=0,ROUND(ABS(W32-Y32)*60,0),-ROUND(ABS(W32-Y32)*60,0)) -> 43 | AA32: =IF($V$8>=0,ROUNDDOWN(AA33,0),ROUNDDOWN(AA34*-1,0)) -> 9 | AB32: =IF($V$8>=0,ROUNDDOWN(AB33,0),ROUNDDOWN(AB34,0)) -> 44 | AC32: =IF($V$8>=0,ROUNDDOWN(AC33,0),ROUNDUP(AC34,0)) -> 54 | AD32: 5 | AE32: =ROUNDDOWN(AE33,0) -> 15 | AF32: =ROUNDDOWN(AF33,0) -> 15 | AG32: =ROUND(AG33*60,0) -> 11
A33: 1 | B33: -13 | C33: 30 | D33: =(B33-(C33/60)) -> -13.5 | AA33: =($V$8*60*60-W32*60)/3600 -> 9.748574308 | AB33: =(AA33-ROUNDDOWN(AA33,0))*60 -> 44.91445849 | AC33: =(AB33-ROUNDDOWN(AB33,0))*60 -> 54.86750943 | AE33: =($V$10*60*60-W32*60)/3600 -> 15.25302248 | AF33: =(AE33-ROUNDDOWN(AE33,0))*60 -> 15.18134889 | AG33: =(AF33-ROUNDDOWN(AF33,0)) -> 0.1813488905
A34: 2 | B34: -13 | C34: 37 | D34: -13.61666667 | AA34: =(AD34/3600) -> 33.83900466 | AB34: =(AA34-ROUNDDOWN(AA34,0))*60 -> 50.34027933 | AC34: =(AB34-ROUNDDOWN(AB34,0))*60 -> 20.41676 | AD34: =($Z$6*3600+Y32*60+Z32) -> 121820.4168
A35: 3 | B35: -13 | C35: 44 | D35: -13.73333333 | V35: X am 0° - Meridian= | W35: =($V$9+((1.1574074074*10^-5)*$Y$13)) -> 28.11358298 | X35: (n-ter Tag) | Y35: MIN | Z35: SEC | AA35: WAHRE ORTSZEIT AM ZIELORT (std:min:sec)
A36: 4 | B36: -13 | C36: 50 | D36: -13.83333333 | U36: JUNI | V36: Y gleitende ZG am 0°-Meridian= | W36: =(-0.0006*W35^2-0.1879*W35+2.4035) -> -3.353266372 | X36: Y = | Y36: =ROUNDDOWN(W36,0) -> -3 | Z36: =IF(Y36>=0,ROUND(ABS(W36-Y36)*60,0),-ROUND(ABS(W36-Y36)*60,0)) -> -21 | AA36: =IF($V$8>=0,ROUNDDOWN(AA37,0),ROUNDDOWN(AA38*-1,0)) -> 9 | AB36: =IF($V$8>=0,ROUNDDOWN(AB37,0),ROUNDDOWN(AB38,0)) -> 50 | AC36: =IF($V$8>=0,ROUNDDOWN(AC37,0),ROUNDUP(AC38,0)) -> 58 | AD36: 6 | AE36: =ROUNDDOWN(AE37,0) -> 15 | AF36: =ROUNDDOWN(AF37,0) -> 21 | AG36: =ROUND(AG37*60,0) -> 15
A37: 5 | B37: -13 | C37: 56 | D37: -13.93333333 | AA37: =($V$8*60*60-W36*60)/3600 -> 9.849614651 | AB37: =(AA37-ROUNDDOWN(AA37,0))*60 -> 50.97687904 | AC37: =(AB37-ROUNDDOWN(AB37,0))*60 -> 58.6127423 | AE37: =($V$10*60*60-W36*60)/3600 -> 15.35406282 | AF37: =(AE37-ROUNDDOWN(AE37,0))*60 -> 21.24376944 | AG37: =(AF37-ROUNDDOWN(AF37,0)) -> 0.2437694383
A38: 6 | B38: -14 | C38: 0 | D38: -14 | AA38: =(AD38/3600) -> 33.73789354 | AB38: =(AA38-ROUNDDOWN(AA38,0))*60 -> 44.27361267 | AC38: =(AB38-ROUNDDOWN(AB38,0))*60 -> 16.41676 | AD38: =($Z$6*3600+Y36*60+Z36) -> 121456.4168
A39: 7 | B39: -14 | C39: 4 | D39: -14.06666667 | V39: X am 0° - Meridian= | W39: =($V$9+((1.1574074074*10^-5)*$Y$13)) -> 28.11358298 | X39: (n-ter Tag) | Y39: MIN | Z39: SEC | AA39: WAHRE ORTSZEIT AM ZIELORT (std:min:sec)
A40: 8 | B40: -14 | C40: 6 | D40: -14.1 | U40: JULI | V40: Y gleitende ZG am 0°-Meridian= | W40: =(0.0043*W39^2-0.2233*W39-3.638) -> -6.517156823 | X40: Y = | Y40: =ROUNDDOWN(W40,0) -> -6 | Z40: =IF(Y40>=0,ROUND(ABS(W40-Y40)*60,0),-ROUND(ABS(W40-Y40)*60,0)) -> -31 | AA40: =IF($V$8>=0,ROUNDDOWN(AA41,0),ROUNDDOWN(AA42*-1,0)) -> 9 | AB40: =IF($V$8>=0,ROUNDDOWN(AB41,0),ROUNDDOWN(AB42,0)) -> 54 | AC40: =IF($V$8>=0,ROUNDDOWN(AC41,0),ROUNDUP(AC42,0)) -> 8 | AD40: 7 | AE40: =ROUNDDOWN(AE41,0) -> 15 | AF40: =ROUNDDOWN(AF41,0) -> 24 | AG40: =ROUND(AG41*60,0) -> 24
A41: 9 | B41: -14 | C41: 8 | D41: -14.13333333 | AA41: =($V$8*60*60-W40*60)/3600 -> 9.902346158 | AB41: =(AA41-ROUNDDOWN(AA41,0))*60 -> 54.14076949 | AC41: =(AB41-ROUNDDOWN(AB41,0))*60 -> 8.446169384 | AE41: =($V$10*60*60-W40*60)/3600 -> 15.40679433 | AF41: =(AE41-ROUNDDOWN(AE41,0))*60 -> 24.40765989 | AG41: =(AF41-ROUNDDOWN(AF41,0)) -> 0.4076598897
A42: 10 | B42: -14 | C42: 10 | D42: -14.16666667 | AA42: =(AD42/3600) -> 33.68511577 | AB42: =(AA42-ROUNDDOWN(AA42,0))*60 -> 41.106946 | AC42: =(AB42-ROUNDDOWN(AB42,0))*60 -> 6.41676 | AD42: =($Z$6*3600+Y40*60+Z40) -> 121266.4168
A43: 11 | B43: -14 | C43: 10 | D43: -14.16666667 | V43: X am 0° - Meridian= | W43: =($V$9+((1.1574074074*10^-5)*$Y$13)) -> 28.11358298 | X43: (n-ter Tag) | Y43: MIN | Z43: SEC | AA43: WAHRE ORTSZEIT AM ZIELORT (std:min:sec)
A44: 12 | B44: -14 | C44: 10 | D44: -14.16666667 | U44: AUGUST | V44: Y gleitende ZG am 0°-Meridian= | W44: =(0.0043*W43^2+0.067*W43-6.4196) -> -1.137383683 | X44: Y = | Y44: =ROUNDDOWN(W44,0) -> -1 | Z44: =IF(Y44>=0,ROUND(ABS(W44-Y44)*60,0),-ROUND(ABS(W44-Y44)*60,0)) -> -8 | AA44: =IF($V$8>=0,ROUNDDOWN(AA45,0),ROUNDDOWN(AA46*-1,0)) -> 9 | AB44: =IF($V$8>=0,ROUNDDOWN(AB45,0),ROUNDDOWN(AB46,0)) -> 48 | AC44: =IF($V$8>=0,ROUNDDOWN(AC45,0),ROUNDUP(AC46,0)) -> 45 | AD44: 8 | AE44: =ROUNDDOWN(AE45,0) -> 15 | AF44: =ROUNDDOWN(AF45,0) -> 19 | AG44: =ROUND(AG45*60,0) -> 2
A45: 13 | B45: -14 | C45: 9 | D45: -14.15 | AA45: =($V$8*60*60-W44*60)/3600 -> 9.812683272 | AB45: =(AA45-ROUNDDOWN(AA45,0))*60 -> 48.76099635 | AC45: =(AB45-ROUNDDOWN(AB45,0))*60 -> 45.65978097 | AE45: =($V$10*60*60-W44*60)/3600 -> 15.31713145 | AF45: =(AE45-ROUNDDOWN(AE45,0))*60 -> 19.02788675 | AG45: =(AF45-ROUNDDOWN(AF45,0)) -> 0.02788674949
A46: 14 | B46: -14 | C46: 7 | D46: -14.11666667 | AA46: =(AD46/3600) -> 33.77483799 | AB46: =(AA46-ROUNDDOWN(AA46,0))*60 -> 46.49027933 | AC46: =(AB46-ROUNDDOWN(AB46,0))*60 -> 29.41676 | AD46: =($Z$6*3600+Y44*60+Z44) -> 121589.4168
A47: 15 | B47: -14 | C47: 5 | D47: -14.08333333 | V47: X am 0° - Meridian= | W47: =($V$9+((1.1574074074*10^-5)*$Y$13)) -> 28.11358298 | X47: (n-ter Tag) | Y47: MIN | Z47: SEC | AA47: WAHRE ORTSZEIT AM ZIELORT (std:min:sec)
A48: 16 | B48: -14 | C48: 2 | D48: -14.03333333 | U48: SEPTEMBER | V48: Y gleitende ZG am 0°-Meridian= | W48: =(0.0001*W47^2+0.3466*W47-0.4511) -> 9.372105217 | X48: Y = | Y48: =ROUNDDOWN(W48,0) -> 9 | Z48: =IF(Y48>=0,ROUND(ABS(W48-Y48)*60,0),-ROUND(ABS(W48-Y48)*60,0)) -> 22 | AA48: =IF($V$8>=0,ROUNDDOWN(AA49,0),ROUNDDOWN(AA50*-1,0)) -> 9 | AB48: =IF($V$8>=0,ROUNDDOWN(AB49,0),ROUNDDOWN(AB50,0)) -> 38 | AC48: =IF($V$8>=0,ROUNDDOWN(AC49,0),ROUNDUP(AC50,0)) -> 15 | AD48: 9 | AE48: =ROUNDDOWN(AE49,0) -> 15 | AF48: =ROUNDDOWN(AF49,0) -> 8 | AG48: =ROUND(AG49*60,0) -> 31
A49: 17 | B49: -13 | C49: 58 | D49: -13.96666667 | AA49: =($V$8*60*60-W48*60)/3600 -> 9.637525124 | AB49: =(AA49-ROUNDDOWN(AA49,0))*60 -> 38.25150745 | AC49: =(AB49-ROUNDDOWN(AB49,0))*60 -> 15.09044698 | AE49: =($V$10*60*60-W48*60)/3600 -> 15.1419733 | AF49: =(AE49-ROUNDDOWN(AE49,0))*60 -> 8.51839785 | AG49: =(AF49-ROUNDDOWN(AF49,0)) -> 0.5183978496
A50: 18 | B50: -13 | C50: 53 | D50: -13.88333333 | AA50: =(AD50/3600) -> 33.94983799 | AB50: =(AA50-ROUNDDOWN(AA50,0))*60 -> 56.99027933 | AC50: =(AB50-ROUNDDOWN(AB50,0))*60 -> 59.41676 | AD50: =($Z$6*3600+Y48*60+Z48) -> 122219.4168
A51: 19 | B51: -13 | C51: 48 | D51: -13.8 | V51: X am 0° - Meridian= | W51: =($V$9+((1.1574074074*10^-5)*$Y$13)) -> 28.11358298 | X51: (n-ter Tag) | Y51: MIN | Z51: SEC | AA51: WAHRE ORTSZEIT AM ZIELORT (std:min:sec)
A52: 20 | B52: -13 | C52: 42 | D52: -13.7 | U52: OKTOBER | V52: Y gleitende ZG am 0°-Meridian= | W52: =(-0.0048*W51^2+0.3608*W51+9.8856) -> 16.23518771 | X52: Y = | Y52: =ROUNDDOWN(W52,0) -> 16 | Z52: =IF(Y52>=0,ROUND(ABS(W52-Y52)*60,0),-ROUND(ABS(W52-Y52)*60,0)) -> 14 | AA52: =IF($V$8>=0,ROUNDDOWN(AA53,0),ROUNDDOWN(AA54*-1,0)) -> 9 | AB52: =IF($V$8>=0,ROUNDDOWN(AB53,0),ROUNDDOWN(AB54,0)) -> 31 | AC52: =IF($V$8>=0,ROUNDDOWN(AC53,0),ROUNDUP(AC54,0)) -> 23 | AD52: 10 | AE52: =ROUNDDOWN(AE53,0) -> 15 | AF52: =ROUNDDOWN(AF53,0) -> 1 | AG52: =ROUND(AG53*60,0) -> 39
A53: 21 | B53: -13 | C53: 36 | D53: -13.6 | AA53: =($V$8*60*60-W52*60)/3600 -> 9.523140416 | AB53: =(AA53-ROUNDDOWN(AA53,0))*60 -> 31.38842496 | AC53: =(AB53-ROUNDDOWN(AB53,0))*60 -> 23.30549744 | AE53: =($V$10*60*60-W52*60)/3600 -> 15.02758859 | AF53: =(AE53-ROUNDDOWN(AE53,0))*60 -> 1.655315357 | AG53: =(AF53-ROUNDDOWN(AF53,0)) -> 0.6553153574
A54: 22 | B54: -13 | C54: 29 | D54: -13.48333333 | AA54: =(AD54/3600) -> 34.06428243 | AB54: =(AA54-ROUNDDOWN(AA54,0))*60 -> 3.856946 | AC54: =(AB54-ROUNDDOWN(AB54,0))*60 -> 51.41676 | AD54: =($Z$6*3600+Y52*60+Z52) -> 122631.4168
A55: 23 | B55: -13 | C55: 21 | D55: -13.35 | V55: X am 0° - Meridian= | W55: =($V$9+((1.1574074074*10^-5)*$Y$13)) -> 28.11358298 | X55: (n-ter Tag) | Y55: MIN | Z55: SEC | AA55: WAHRE ORTSZEIT AM ZIELORT (std:min:sec)
A56: 24 | B56: -13 | C56: 12 | D56: -13.2 | U56: NOVEMBER | V56: Y gleitende ZG am 0°-Meridian= | W56: =(-0.0069*W55^2+0.0405*W55+16.386) -> 12.07102263 | X56: Y = | Y56: =ROUNDDOWN(W56,0) -> 12 | Z56: =IF(Y56>=0,ROUND(ABS(W56-Y56)*60,0),-ROUND(ABS(W56-Y56)*60,0)) -> 4 | AA56: =IF($V$8>=0,ROUNDDOWN(AA57,0),ROUNDDOWN(AA58*-1,0)) -> 9 | AB56: =IF($V$8>=0,ROUNDDOWN(AB57,0),ROUNDDOWN(AB58,0)) -> 35 | AC56: =IF($V$8>=0,ROUNDDOWN(AC57,0),ROUNDUP(AC58,0)) -> 33 | AD56: 11 | AE56: =ROUNDDOWN(AE57,0) -> 15 | AF56: =ROUNDDOWN(AF57,0) -> 5 | AG56: =ROUND(AG57*60,0) -> 49
A57: 25 | B57: -13 | C57: 3 | D57: -13.05 | AA57: =($V$8*60*60-W56*60)/3600 -> 9.592543167 | AB57: =(AA57-ROUNDDOWN(AA57,0))*60 -> 35.55259004 | AC57: =(AB57-ROUNDDOWN(AB57,0))*60 -> 33.1554023 | AE57: =($V$10*60*60-W56*60)/3600 -> 15.09699134 | AF57: =(AE57-ROUNDDOWN(AE57,0))*60 -> 5.819480438 | AG57: =(AF57-ROUNDDOWN(AF57,0)) -> 0.8194804384
A58: 26 | B58: -12 | C58: 54 | D58: -12.9 | AA58: =(AD58/3600) -> 33.99483799 | AB58: =(AA58-ROUNDDOWN(AA58,0))*60 -> 59.69027933 | AC58: =(AB58-ROUNDDOWN(AB58,0))*60 -> 41.41676 | AD58: =($Z$6*3600+Y56*60+Z56) -> 122381.4168
A59: 27 | B59: -12 | C59: 43 | D59: -12.71666667 | V59: X am 0° - Meridian= | W59: =($V$9+((1.1574074074*10^-5)*$Y$13)) -> 28.11358298 | X59: (n-ter Tag) | Y59: MIN | Z59: SEC | AA59: WAHRE ORTSZEIT AM ZIELORT (std:min:sec)
A60: 28 | B60: -12 | C60: 33 | D60: -12.55 | U60: DEZEMBER | V60: Y gleitende ZG am 0°-Meridian= | W60: =(-0.0018*W59^2-0.413*W59+11.533) -> -1.500582159 | X60: Y = | Y60: =ROUNDDOWN(W60,0) -> -1 | Z60: =IF(Y60>=0,ROUND(ABS(W60-Y60)*60,0),-ROUND(ABS(W60-Y60)*60,0)) -> -30 | AA60: =IF($V$8>=0,ROUNDDOWN(AA61,0),ROUNDDOWN(AA62*-1,0)) -> 9 | AB60: =IF($V$8>=0,ROUNDDOWN(AB61,0),ROUNDDOWN(AB62,0)) -> 49 | AC60: =IF($V$8>=0,ROUNDDOWN(AC61,0),ROUNDUP(AC62,0)) -> 7 | AD60: 12 | AE60: =ROUNDDOWN(AE61,0) -> 15 | AF60: =ROUNDDOWN(AF61,0) -> 19 | AG60: =ROUND(AG61*60,0) -> 23
A61: März: | D61: März | AA61: =($V$8*60*60-W60*60)/3600 -> 9.81873658 | AB61: =(AA61-ROUNDDOWN(AA61,0))*60 -> 49.12419483 | AC61: =(AB61-ROUNDDOWN(AB61,0))*60 -> 7.451689548 | AE61: =($V$10*60*60-W60*60)/3600 -> 15.32318475 | AF61: =(AE61-ROUNDDOWN(AE61,0))*60 -> 19.39108523 | AG61: =(AF61-ROUNDDOWN(AF61,0)) -> 0.3910852258
A62: 1 | B62: -12 | C62: 21 | D62: =(B62-(C62/60)) -> -12.35 | AA62: =(AD62/3600) -> 33.76872688 | AB62: =(AA62-ROUNDDOWN(AA62,0))*60 -> 46.12361267 | AC62: =(AB62-ROUNDDOWN(AB62,0))*60 -> 7.41676 | AD62: =($Z$6*3600+Y60*60+Z60) -> 121567.4168
A63: 2 | B63: -12 | C63: 10 | D63: -12.16666667
A64: 3 | B64: -11 | C64: 57 | D64: -11.95
A65: 4 | B65: -11 | C65: 44 | D65: -11.73333333
A66: 5 | B66: -11 | C66: 31 | D66: -11.51666667
A67: 6 | B67: -11 | C67: 17 | D67: -11.28333333
A68: 7 | B68: -11 | C68: 3 | D68: -11.05
A69: 8 | B69: -10 | C69: 49 | D69: -10.81666667
A70: 9 | B70: -10 | C70: 34 | D70: -10.56666667
A71: 10 | B71: -10 | C71: 19 | D71: -10.31666667
A72: 11 | B72: -10 | C72: 3 | D72: -10.05
A73: 12 | B73: -9 | C73: 47 | D73: -9.783333333
A74: 13 | B74: -9 | C74: 31 | D74: -9.516666667
A75: 14 | B75: -9 | C75: 15 | D75: -9.25
A76: 15 | B76: -8 | C76: 58 | D76: -8.966666667
A77: 16 | B77: -8 | C77: 41 | D77: -8.683333333
A78: 17 | B78: -8 | C78: 24 | D78: -8.4
A79: 18 | B79: -8 | C79: 7 | D79: -8.116666667
A80: 19 | B80: -7 | C80: 49 | D80: -7.816666667
A81: 20 | B81: -7 | C81: 32 | D81: -7.533333333
A82: 21 | B82: -7 | C82: 14 | D82: -7.233333333
A83: 22 | B83: -6 | C83: 57 | D83: -6.95
A84: 23 | B84: -6 | C84: 39 | D84: -6.65
A85: 24 | B85: -6 | C85: 21 | D85: -6.35
A86: 25 | B86: -6 | C86: 3 | D86: -6.05
A87: 26 | B87: -5 | C87: 45 | D87: -5.75
A88: 27 | B88: -5 | C88: 27 | D88: -5.45
A89: 28 | B89: -5 | C89: 9 | D89: -5.15
A90: 29 | B90: -4 | C90: 50 | D90: -4.833333333
A91: 30 | B91: -4 | C91: 32 | D91: -4.533333333
A92: 31 | B92: -4 | C92: 14 | D92: -4.233333333
A93: April: | D93: April
A94: 1 | B94: -3 | C94: 57 | D94: =(B94-(C94/60)) -> -3.95
A95: =(A94+1) -> 2 | B95: -3 | C95: 39 | D95: -3.65
A96: 3 | B96: -3 | C96: 21 | D96: -3.35
A97: 4 | B97: -3 | C97: 4 | D97: -3.066666667
A98: 5 | B98: -2 | C98: 46 | D98: -2.766666667
A99: 6 | B99: -2 | C99: 29 | D99: -2.483333333
A100: 7 | B100: -2 | C100: 12 | D100: -2.2
A101: 8 | B101: -1 | C101: 55 | D101: -1.916666667
A102: 9 | B102: -1 | C102: 39 | D102: -1.65
A103: 10 | B103: -1 | C103: 22 | D103: -1.366666667
A104: 11 | B104: -1 | C104: 6 | D104: -1.1
A105: 12 | B105: 0 | C105: -51 | D105: 0.85
A106: 13 | B106: 0 | C106: -35 | D106: 0.5833333333
A107: 14 | B107: 0 | C107: -20 | D107: 0.3333333333
A108: 15 | B108: 0 | C108: -6 | D108: 0.1
A109: 16 | B109: 0 | C109: 9 | D109: =(B109+(C109/60)) -> 0.15
A110: 17 | B110: 0 | C110: 22 | D110: 0.3666666667
A111: 18 | B111: 0 | C111: 36 | D111: 0.6
A112: 19 | B112: 0 | C112: 49 | D112: 0.8166666667
A113: 20 | B113: 1 | C113: 2 | D113: 1.033333333
A114: 21 | B114: 1 | C114: 14 | D114: 1.233333333
A115: 22 | B115: 1 | C115: 26 | D115: 1.433333333
A116: 23 | B116: 1 | C116: 37 | D116: 1.616666667
A117: 24 | B117: 1 | C117: 48 | D117: 1.8
A118: 25 | B118: 1 | C118: 59 | D118: 1.983333333
A119: 26 | B119: 2 | C119: 9 | D119: 2.15
A120: 27 | B120: 2 | C120: 18 | D120: 2.3
A121: 28 | B121: 2 | C121: 27 | D121: 2.45
A122: 29 | B122: 2 | C122: 36 | D122: 2.6
A123: 30 | B123: 2 | C123: 44 | D123: 2.733333333
A124: Mai | D124: Mai | E124: Juni | F124: Juli | G124: August
A125: 1 | B125: 2 | C125: 52 | D125: =(B125+(C125/60)) -> 2.866666667 | E125: 2.133333333 | F125: -3.9 | G125: -6.316666667
A126: 2 | B126: 2 | C126: 59 | D126: 2.983333333 | E126: 1.983333333 | F126: -4.1 | G126: -6.25
A127: 3 | B127: 3 | C127: 5 | D127: 3.083333333 | E127: 1.816666667 | F127: -4.283333333 | G127: -6.166666667
A128: 4 | B128: 3 | C128: 11 | D128: 3.183333333 | E128: 1.65 | F128: -4.466666667 | G128: -6.083333333
A129: 5 | B129: 3 | C129: 17 | D129: 3.283333333 | E129: 1.466666667 | F129: -4.633333333 | G129: -5.983333333
A130: 6 | B130: 3 | C130: 21 | D130: 3.35 | E130: 1.283333333 | F130: -4.8 | G130: -5.866666667
A131: 7 | B131: 3 | C131: 26 | D131: 3.433333333 | E131: 1.1 | F131: -4.966666667 | G131: -5.75
A132: 8 | B132: 3 | C132: 29 | D132: 3.483333333 | E132: 0.9 | F132: -5.116666667 | G132: -5.633333333
A133: 9 | B133: 3 | C133: 32 | D133: 3.533333333 | E133: 0.7 | F133: -5.266666667 | G133: -5.483333333
A134: 10 | B134: 3 | C134: 35 | D134: 3.583333333 | E134: 0.5 | F134: -5.416666667 | G134: -5.333333333
A135: 11 | B135: 3 | C135: 37 | D135: 3.616666667 | E135: 0.3 | F135: -5.55 | G135: -5.183333333
A136: 12 | B136: 3 | C136: 38 | D136: 3.633333333 | E136: 0.1 | F136: -5.683333333 | G136: -5.016666667
A137: 13 | B137: 3 | C137: 39 | D137: 3.65 | E137: -0.1166666667 | F137: -5.8 | G137: -4.833333333
A138: 14 | B138: 3 | C138: 39 | D138: 3.65 | E138: -0.3333333333 | F138: -5.916666667 | G138: -4.65
A139: 15 | B139: 3 | C139: 39 | D139: 3.65 | E139: -0.55 | F139: -6.016666667 | G139: -4.45
A140: 16 | B140: 3 | C140: 38 | D140: 3.633333333 | E140: -0.7666666667 | F140: -6.116666667 | G140: -4.25
A141: 17 | B141: 3 | C141: 36 | D141: 3.6 | E141: -0.9833333333 | F141: -6.2 | G141: -4.033333333
A142: 18 | B142: 3 | C142: 33 | D142: 3.55 | E142: -1.2 | F142: -6.266666667 | G142: -3.816666667
A143: 19 | B143: 3 | C143: 31 | D143: 3.516666667 | E143: -1.416666667 | F143: -6.333333333 | G143: -3.583333333
A144: 20 | B144: 3 | C144: 28 | D144: 3.466666667 | E144: -1.633333333 | F144: -6.4 | G144: -3.35
A145: 21 | B145: 3 | C145: 24 | D145: 3.4 | E145: -1.85 | F145: -6.45 | G145: -3.1
A146: 22 | B146: 3 | C146: 20 | D146: 3.333333333 | E146: -2.066666667 | F146: -6.483333333 | G146: -2.833333333
A147: 23 | B147: 3 | C147: 15 | D147: 3.25 | E147: -2.266666667 | F147: -6.516666667 | G147: -2.583333333
A148: 24 | B148: 3 | C148: 10 | D148: 3.166666667 | E148: -2.483333333 | F148: -6.533333333 | G148: -2.316666667
A149: 25 | B149: 3 | C149: 4 | D149: 3.066666667 | E149: -2.7 | F149: -6.533333333 | G149: -2.033333333
A150: 26 | B150: 2 | C150: 58 | D150: 2.966666667 | E150: -2.9 | F150: -6.533333333 | G150: -1.75
A151: 27 | B151: 2 | C151: 51 | D151: 2.85 | E151: -3.116666667 | F151: -6.533333333 | G151: -1.466666667
A152: 28 | B152: 2 | C152: 44 | D152: 2.733333333 | E152: -3.283333333 | F152: -6.5 | G152: -1.166666667
A153: 29 | B153: 2 | C153: 36 | D153: 2.6 | E153: -3.516666667 | F153: -6.466666667 | G153: -0.8666666667
A154: 30 | B154: 2 | C154: 28 | D154: 2.466666667 | E154: -3.716666667 | F154: -6.433333333 | G154: -0.5666666667
A155: 31 | B155: 2 | C155: 20 | D155: 2.333333333 | F155: -6.383333333 | G155: -0.25
A156: Juni | D156: Juni
A157: 1 | B157: 2 | C157: 11 | D157: =(B157+(C157/60)) -> 2.183333333
A158: 2 | B158: 2 | C158: 2 | D158: 2.033333333
A159: 3 | B159: 1 | C159: 52 | D159: 1.866666667
A160: 4 | B160: 1 | C160: 42 | D160: 1.7
A161: 5 | B161: 1 | C161: 32 | D161: 1.533333333
A162: 6 | B162: 1 | C162: 21 | D162: 1.35
A163: 7 | B163: 1 | C163: 10 | D163: 1.166666667
A164: 8 | B164: 0 | C164: 59 | D164: 0.9833333333
A165: 9 | B165: 0 | C165: 47 | D165: 0.7833333333
A166: 10 | B166: 0 | C166: 35 | D166: 0.5833333333
A167: 11 | B167: 0 | C167: 23 | D167: 0.3833333333
A168: 12 | B168: 0 | C168: 11 | D168: 0.1833333333
A169: 13 | B169: 0 | C169: -2 | D169: =-(B169-(C169/60)) -> -0.03333333333
A170: 14 | B170: 0 | C170: -14 | D170: =-(B170-(C170/60)) -> -0.2333333333
A171: 15 | B171: 0 | C171: -27 | D171: =-(B171-(C171/60)) -> -0.45
A172: 16 | B172: 0 | C172: -40 | D172: =-(B172-(C172/60)) -> -0.6666666667
A173: 17 | B173: 0 | C173: -53 | D173: =-(B173-(C173/60)) -> -0.8833333333
A174: 18 | B174: -1 | C174: 6 | D174: =(B174-(C174/60)) -> -1.1
A175: 19 | B175: -1 | C175: 20 | D175: -1.333333333
A176: 20 | B176: -1 | C176: 33 | D176: -1.55
A177: 21 | B177: -1 | C177: 46 | D177: -1.766666667
A178: 22 | B178: -1 | C178: 59 | D178: -1.983333333
A179: 23 | B179: -2 | C179: 12 | D179: -2.2
A180: 24 | B180: -2 | C180: 25 | D180: -2.416666667
A181: 25 | B181: -2 | C181: 38 | D181: -2.633333333
A182: 26 | B182: -2 | C182: 51 | D182: -2.85
A183: 27 | B183: -3 | C183: 3 | D183: -3.05
A184: 28 | B184: -3 | C184: 16 | D184: -3.266666667
A185: 29 | B185: -3 | C185: 28 | D185: -3.466666667
A186: 30 | B186: -3 | C186: 40 | D186: -3.666666667
A187: Juli | D187: Juli
A188: 1 | B188: =(3*-1) -> -3 | C188: 51 | D188: =(B188-(C188/60)) -> -3.85
A189: 2 | B189: -4 | C189: 3 | D189: =(B189-(C189/60)) -> -4.05
A190: 3 | B190: -4 | C190: 14 | D190: -4.233333333
A191: 4 | B191: -4 | C191: 25 | D191: -4.416666667
A192: 5 | B192: -4 | C192: 35 | D192: -4.583333333
A193: 6 | B193: -4 | C193: 45 | D193: -4.75
A194: 7 | B194: -4 | C194: 55 | D194: -4.916666667
A195: 8 | B195: -5 | C195: 4 | D195: -5.066666667
A196: 9 | B196: -5 | C196: 14 | D196: -5.233333333
A197: 10 | B197: -5 | C197: 22 | D197: -5.366666667
A198: 11 | B198: -5 | C198: 31 | D198: -5.516666667
A199: 12 | B199: -5 | C199: 38 | D199: -5.633333333
A200: 13 | B200: -5 | C200: 46 | D200: -5.766666667
... 177 more rows
